{"text_format":"1","workbook":"xlsx","n_sheets":9,"sheets":["施設一覧","設定・確認","①実績調書（在園児用の平日）","②実績調書（在園児用の長期休業日）","③実績調書（在園児用の休日）","④実績調書 (非在園児用)","⑤実績調書 (特別支援児童用)","⑥報告書","祝日"],"not_rendered":{"charts":0,"images":0,"macros":0,"external_links":0,"defined_names":19,"comments":0,"pivot_tables":0},"unopened":[],"bounds":{"document_bytes":16777216,"sheet_cells":100000,"rows_first":2000,"rows_last":500,"rows_between":2000,"halvings":0,"cell_chars":16384,"cell_head_chars":4096},"cells_cut":0,"cells_raw":0,"read":"whole","date_system":"1900"}

{"sheet":"施設一覧","index":0,"n_rows":232,"n_cols":4,"rows_kept":232,"cut":false,"hidden":false,"merged":[]}
["施設番号","施設名","内訳№","内訳No.と施設名を結合"]
[202020,"幼保連携型認定こども園　聖ニコラス天使園",71,{"$f":"C2&B2","v":"71幼保連携型認定こども園　聖ニコラス天使園"}]
[202021,"幼保連携型認定こども園　神戸夢",72,"72幼保連携型認定こども園　神戸夢"]
[202022,"幼保連携型認定こども園　石屋川くるみ保育園",73,"73幼保連携型認定こども園　石屋川くるみ保育園"]
[202023,"幼保連携型認定こども園　本山北町あすのこども園",74,"74幼保連携型認定こども園　本山北町あすのこども園"]
[202024,"認定こども園　魚崎ＣＯＣＯＲＯ",75,"75認定こども園　魚崎ＣＯＣＯＲＯ"]
[202025,"幼保連携型認定こども園　きらり保育園",76,"76幼保連携型認定こども園　きらり保育園"]
[202026,"幼保連携型認定こども園　きたおおぎこども園",77,"77幼保連携型認定こども園　きたおおぎこども園"]
[202027,"認定こども園　松蔭おかもと保育園",78,"78認定こども園　松蔭おかもと保育園"]
[202028,"幼保連携型認定こども園　第２きらり保育園",79,"79幼保連携型認定こども園　第２きらり保育園"]
["202030","幼保連携型認定こども園　同朋住吉台こども園",80,"80幼保連携型認定こども園　同朋住吉台こども園"]
["202031","幼保連携型認定こども園　甲南すこやかこども園",81,"81幼保連携型認定こども園　甲南すこやかこども園"]
["202032","幼保連携型認定こども園　モーツァルトこども園",82,"82幼保連携型認定こども園　モーツァルトこども園"]
["202033","認定こども園　あおい宙",83,"83認定こども園　あおい宙"]
["202034","幼保連携型認定こども園　甲南こども園",84,"84幼保連携型認定こども園　甲南こども園"]
["202035","光の子認定こども園",85,"85光の子認定こども園"]
["202038","幼保連携型認定こども園　ふかえ虹こども園",86,"86幼保連携型認定こども園　ふかえ虹こども園"]
["202039","幼保連携型認定こども園　おかもと虹こども園",87,"87幼保連携型認定こども園　おかもと虹こども園"]
["202040","幼保連携型認定こども園　茅渟の浦幼稚園",88,"88幼保連携型認定こども園　茅渟の浦幼稚園"]
["202041","幼保連携型認定こども園　渦が森幼稚園",89,"89幼保連携型認定こども園　渦が森幼稚園"]
["202042","幼保連携型認定こども園　岡本ハーベストこども園",90,"90幼保連携型認定こども園　岡本ハーベストこども園"]
["202043","幼保連携型認定こども園　ブルーノの森保育園",91,"91幼保連携型認定こども園　ブルーノの森保育園"]
["202045","幼保連携型認定こども園　ザ・ブルーノ",92,"92幼保連携型認定こども園　ザ・ブルーノ"]
["202046","幼保連携型認定こども園　同朋わくわく園",93,"93幼保連携型認定こども園　同朋わくわく園"]
["202047","幼保連携型認定こども園　岡本信愛幼稚園",94,"94幼保連携型認定こども園　岡本信愛幼稚園"]
[202120,"幼保連携型認定こども園　はっとこども園",95,"95幼保連携型認定こども園　はっとこども園"]
[202121,"幼保連携型認定こども園　なかはらこども園",96,"96幼保連携型認定こども園　なかはらこども園"]
[202122,"認定こども園　六甲道ＣＯＣＯＲＯ",97,"97認定こども園　六甲道ＣＯＣＯＲＯ"]
[202123,"認定こども園　高羽ＣＯＣＯＲＯ",98,"98認定こども園　高羽ＣＯＣＯＲＯ"]
[202124,"幼保連携型認定こども園　神戸さくら保育園",99,"99幼保連携型認定こども園　神戸さくら保育園"]
[202125,"幼保連携型認定こども園　八幡幼稚園・八幡ピジョン保育園",100,"100幼保連携型認定こども園　八幡幼稚園・八幡ピジョン保育園"]
[202126,"幼保連携型認定こども園　微笑幼稚園",101,"101幼保連携型認定こども園　微笑幼稚園"]
["202127","幼保連携型認定こども園　光愛児園",102,"102幼保連携型認定こども園　光愛児園"]
["202129","幼保連携型認定こども園　青谷愛児園",103,"103幼保連携型認定こども園　青谷愛児園"]
["202130","幼保連携型認定こども園　おおいしこども園",104,"104幼保連携型認定こども園　おおいしこども園"]
["202132","幼保連携型認定こども園　オリンピア都こども園",105,"105幼保連携型認定こども園　オリンピア都こども園"]
["202133","幼保連携型めばえの園認定こども園",106,"106幼保連携型めばえの園認定こども園"]
["202135","ゆりか認定こども園",107,"107ゆりか認定こども園"]
["202136","幼保連携型認定こども園　六甲ゆりかごこども園",108,"108幼保連携型認定こども園　六甲ゆりかごこども園"]
["202137","幼保連携型認定こども園　花音つばさこども園",109,"109幼保連携型認定こども園　花音つばさこども園"]
[202139,"認定こども園  高羽幼稚園",110,"110認定こども園  高羽幼稚園"]
["202142","幼保連携型認定こども園　同朋保育園",111,"111幼保連携型認定こども園　同朋保育園"]
[202143,"幼保連携型認定こども園　ホザナ幼稚園",112,"112幼保連携型認定こども園　ホザナ幼稚園"]
[202220,"幼保連携型みのり認定こども園",113,"113幼保連携型みのり認定こども園"]
[202221,"聖ミカエル幼保連携型認定こども園",114,"114聖ミカエル幼保連携型認定こども園"]
["202223","幼保型認定こども園　はたつかこども園",115,"115幼保型認定こども園　はたつかこども園"]
["202224","大慈ほまれ幼保連携型認定こども園",116,"116大慈ほまれ幼保連携型認定こども園"]
["202225","幼保連携型認定こども園　塩原学園幼稚園",117,"117幼保連携型認定こども園　塩原学園幼稚園"]
["202226","幼保連携型認定こども園　友愛幼児園",118,"118幼保連携型認定こども園　友愛幼児園"]
["202227","大慈幼保連携型認定こども園",119,"119大慈幼保連携型認定こども園"]
["202229","幼保連携型認定こども園　ポートピア",120,"120幼保連携型認定こども園　ポートピア"]
["202230","幼保連携型認定こども園　成晃ひかり保育園",121,"121幼保連携型認定こども園　成晃ひかり保育園"]
["202231","幼保連携型認定こども園　真生きらきら保育園",122,"122幼保連携型認定こども園　真生きらきら保育園"]
["202232","幼保連携型認定こども園　神戸ゆたか園",123,"123幼保連携型認定こども園　神戸ゆたか園"]
[202235,"認定こども園　みなとじまＣＯＣＯＲＯ",124,"124認定こども園　みなとじまＣＯＣＯＲＯ"]
[202420,"幼保連携型認定こども園　宝地院保育園",125,"125幼保連携型認定こども園　宝地院保育園"]
["202421","幼保連携型認定こども園　大同保育園",126,"126幼保連携型認定こども園　大同保育園"]
["202422","幼保連携型認定こども園　モーツァルト兵庫こども園",127,"127幼保連携型認定こども園　モーツァルト兵庫こども園"]
["202423","幼保連携型認定こども園　神港みどり幼稚園　",128,"128幼保連携型認定こども園　神港みどり幼稚園　"]
["202424","幼保連携型認定こども園　ゆりかごこども園",129,"129幼保連携型認定こども園　ゆりかごこども園"]
["202425","大慈ひょうご幼保連携型認定こども園",130,"130大慈ひょうご幼保連携型認定こども園"]
[202427,"幼保連携型認定こども園　神徳館こども園",131,"131幼保連携型認定こども園　神徳館こども園"]
[202430,"幼保連携型認定こども園　みさきこども園",132,"132幼保連携型認定こども園　みさきこども園"]
[202431,"幼保連携型認定こども園　神戸夢野幼稚園",133,"133幼保連携型認定こども園　神戸夢野幼稚園"]
["202432","幼保連携型認定こども園　聖ミカエル兵庫幼稚園",134,"134幼保連携型認定こども園　聖ミカエル兵庫幼稚園"]
["202522","認定こども園　神戸保育園",135,{"$f":"C66&B66","v":"135認定こども園　神戸保育園"}]
["202523","幼保連携型認定こども園　たから保育園",136,"136幼保連携型認定こども園　たから保育園"]
["202524","認定こども園　神楽こども園",137,"137認定こども園　神楽こども園"]
["202525","神戸エンゼル認定こども園",138,"138神戸エンゼル認定こども園"]
["202526","幼保連携型認定こども園　名倉幼稚園",139,"139幼保連携型認定こども園　名倉幼稚園"]
["202527","幼保連携型認定こども園　新生こども園",140,"140幼保連携型認定こども園　新生こども園"]
["202528","幼保連携型認定こども園　五位の池こども園",141,"141幼保連携型認定こども園　五位の池こども園"]
["202529","幼保連携型認定こども園　ほそだ",142,"142幼保連携型認定こども園　ほそだ"]
["202531","幼保連携型認定こども園　近田幼稚園",143,"143幼保連携型認定こども園　近田幼稚園"]
[202534,"幼保連携型認定こども園　けやき保育園",144,"144幼保連携型認定こども園　けやき保育園"]
["202535","幼保連携型認定こども園　名倉みふね幼稚園",145,"145幼保連携型認定こども園　名倉みふね幼稚園"]
[202620,"幼保連携型認定こども園　若木こども園",146,"146幼保連携型認定こども園　若木こども園"]
[202621,"幼保連携型認定こども園　大手幼稚園",147,"147幼保連携型認定こども園　大手幼稚園"]
[202622,"幼保連携型認定こども園　西須磨幼稚園",148,"148幼保連携型認定こども園　西須磨幼稚園"]
[202623,"幼保連携型認定こども園　神戸YMCAちとせ幼稚園",149,"149幼保連携型認定こども園　神戸YMCAちとせ幼稚園"]
[202625,"幼保連携型認定こども園　東須磨愛児園",150,"150幼保連携型認定こども園　東須磨愛児園"]
[202627,"幼保連携型認定こども園　村雨こども園",151,"151幼保連携型認定こども園　村雨こども園"]
[202629,"幼保連携型認定こども園　いたやど保育園",152,"152幼保連携型認定こども園　いたやど保育園"]
[202630,"幼保連携型認定こども園　ちとせこども園",153,"153幼保連携型認定こども園　ちとせこども園"]
["202632","幼保連携型認定こども園　神戸女子大学附属高倉台幼稚園",154,"154幼保連携型認定こども園　神戸女子大学附属高倉台幼稚園"]
[202720,"幼保連携型認定こども園　多夢の森",155,"155幼保連携型認定こども園　多夢の森"]
[202721,"幼保連携型認定こども園　夢の森",156,"156幼保連携型認定こども園　夢の森"]
[202722,"幼保連携型　おとぎ認定こども園",157,"157幼保連携型　おとぎ認定こども園"]
[202723,"幼保連携型認定こども園　花の森",158,"158幼保連携型認定こども園　花の森"]
[202724,"幼保連携型認定こども園　心の森",159,"159幼保連携型認定こども園　心の森"]
[202725,"幼保連携型認定こども園　明舞幼稚園",160,"160幼保連携型認定こども園　明舞幼稚園"]
[202726,"幼保連携型認定こども園　塩屋幼稚園",161,"161幼保連携型認定こども園　塩屋幼稚園"]
["202730","幼保連携型小束山認定こども園",162,"162幼保連携型小束山認定こども園"]
["202731","幼保連携型認定こども園　桃の木幼稚園",163,"163幼保連携型認定こども園　桃の木幼稚園"]
["202732","幼保連携型認定こども園　上高丸",164,"164幼保連携型認定こども園　上高丸"]
["202734","幼保連携型認定こども園　舞子保育園",165,"165幼保連携型認定こども園　舞子保育園"]
["202735","幼保連携型認定こども園　しおやこども園",166,"166幼保連携型認定こども園　しおやこども園"]
["202736","幼保連携型認定こども園　かすみがおか虹こども園",167,"167幼保連携型認定こども園　かすみがおか虹こども園"]
["202737","幼保連携型認定こども園　たけのこども園",168,"168幼保連携型認定こども園　たけのこども園"]
["202739","幼保連携型認定こども園　多聞台こども園",169,"169幼保連携型認定こども園　多聞台こども園"]
["202740","幼保連携型認定こども園　たかつか保育園",170,"170幼保連携型認定こども園　たかつか保育園"]
["202741","幼保連携型認定こども園　歌敷山保育園",171,"171幼保連携型認定こども園　歌敷山保育園"]
["202742","幼保連携型認定こども園　滝の茶屋保育園",172,"172幼保連携型認定こども園　滝の茶屋保育園"]
["202743","幼保連携型認定こども園　たるみ保育園",173,"173幼保連携型認定こども園　たるみ保育園"]
["202744","幼保連携型認定こども園　ことぶきこども園",174,"174幼保連携型認定こども園　ことぶきこども園"]
["202745","幼保連携型認定こども園　かすがこども園",175,"175幼保連携型認定こども園　かすがこども園"]
[202748,"幼保連携型認定こども園　千鳥が丘親和こども園",176,"176幼保連携型認定こども園　千鳥が丘親和こども園"]
["202749","幼保連携型認定こども園　高丸幼稚園",177,"177幼保連携型認定こども園　高丸幼稚園"]
[202752,"幼保連携型認定こども園　学が丘保育園",178,"178幼保連携型認定こども園　学が丘保育園"]
[202754,"幼保連携型認定こども園　霞ヶ丘幼稚園",179,"179幼保連携型認定こども園　霞ヶ丘幼稚園"]
["202755","幼保連携型認定こども園　彩の森",180,"180幼保連携型認定こども園　彩の森"]
["057062","幼保連携型認定こども園　東垂水保育園",181,"181幼保連携型認定こども園　東垂水保育園"]
["202757","幼保連携型認定こども園　舞子幼稚園",182,"182幼保連携型認定こども園　舞子幼稚園"]
[202820,"認定こども園　このみ保育園",183,"183認定こども園　このみ保育園"]
[202821,"幼保連携型認定こども園　星和台幼稚園",184,"184幼保連携型認定こども園　星和台幼稚園"]
[202822,"幼保連携型認定こども園　五葉幼稚園",185,"185幼保連携型認定こども園　五葉幼稚園"]
["202826","幼保連携型認定こども園　みどりこども園",186,"186幼保連携型認定こども園　みどりこども園"]
["202827","幼保型認定こども園　鈴蘭台北町こども園",187,"187幼保型認定こども園　鈴蘭台北町こども園"]
["202828","認定こども園　頌栄保育園",188,"188認定こども園　頌栄保育園"]
["202829","幼保連携型認定こども園　山のまち",189,"189幼保連携型認定こども園　山のまち"]
["202830","認定こども園　太陽の子保育園",190,"190認定こども園　太陽の子保育園"]
["202831","認定こども園　西鈴蘭台頌栄保育園",191,"191認定こども園　西鈴蘭台頌栄保育園"]
[202832,"幼保連携型認定こども園　桜の宮こども園",192,"192幼保連携型認定こども園　桜の宮こども園"]
[202920,"幼保連携型認定こども園　岩岡こども園",193,"193幼保連携型認定こども園　岩岡こども園"]
[202921,"幼保連携型認定こども園　おっこう山",194,"194幼保連携型認定こども園　おっこう山"]
[202922,"幼保連携型認定こども園　あさひ保育園",195,"195幼保連携型認定こども園　あさひ保育園"]
[202923,"幼保連携型認定こども園　ＹＭＣＡ保育園",196,"196幼保連携型認定こども園　ＹＭＣＡ保育園"]
[202924,"幼保連携型認定こども園　なごみ保育園",197,"197幼保連携型認定こども園　なごみ保育園"]
[202925,"幼保連携型認定こども園　西神戸ＹＭＣＡ保育園",198,"198幼保連携型認定こども園　西神戸ＹＭＣＡ保育園"]
[202926,"幼保連携型認定こども園　神戸潤和保育園",199,{"$f":"C130&B130","v":"199幼保連携型認定こども園　神戸潤和保育園"}]
[202927,"幼保連携型認定こども園　神戸学園都市YMCAこども園　",200,"200幼保連携型認定こども園　神戸学園都市YMCAこども園　"]
[202928,"認定こども園　ななほし保育園",201,"201認定こども園　ななほし保育園"]
["202932","幼保連携型認定こども園　あい保育園",202,"202幼保連携型認定こども園　あい保育園"]
["202933","幼保連携型認定こども園　あゆみ幼児園",203,"203幼保連携型認定こども園　あゆみ幼児園"]
["202934","幼保連携型認定こども園　同朋にこにこ園",204,"204幼保連携型認定こども園　同朋にこにこ園"]
["202936","幼保連携型認定こども園　わらべ保育園",205,"205幼保連携型認定こども園　わらべ保育園"]
["202937","幼保連携型認定こども園　有瀬幼稚園",206,"206幼保連携型認定こども園　有瀬幼稚園"]
["202938","幼保連携型認定　弁天こども園",207,"207幼保連携型認定　弁天こども園"]
["202939","幼保連携型認定こども園　平野保育園",208,"208幼保連携型認定こども園　平野保育園"]
["202940","幼保連携型認定こども園　竹の台保育園",209,"209幼保連携型認定こども園　竹の台保育園"]
["202941","幼保連携型認定こども園　つぐみ保育園",210,"210幼保連携型認定こども園　つぐみ保育園"]
["202942","幼保連携型認定こども園　ひまわりこども園",211,"211幼保連携型認定こども園　ひまわりこども園"]
["202943","幼保連携型認定こども園　学園幼稚園",212,"212幼保連携型認定こども園　学園幼稚園"]
["202944","幼保連携型認定こども園　出合保育園",213,"213幼保連携型認定こども園　出合保育園"]
["202946","幼保連携型認定こども園　持子保育園",214,"214幼保連携型認定こども園　持子保育園"]
["202947","幼保連携型認定こども園　桑ノ木幼稚園",215,"215幼保連携型認定こども園　桑ノ木幼稚園"]
["202948","幼保連携型認定こども園　西神戸ＹＭＣＡ幼稚園",216,"216幼保連携型認定こども園　西神戸ＹＭＣＡ幼稚園"]
[202949,"幼保連携型認定こども園　枦谷つぐみ保育園",217,"217幼保連携型認定こども園　枦谷つぐみ保育園"]
[202951,"幼保連携型認定こども園　井吹北つぐみ保育園",218,"218幼保連携型認定こども園　井吹北つぐみ保育園"]
["202953","幼保連携型認定こども園　まゆか保育園",219,"219幼保連携型認定こども園　まゆか保育園"]
["202954","幼保連携型認定こども園　神出保育園",220,"220幼保連携型認定こども園　神出保育園"]
["202955","幼保連携型認定こども園　カナリアこども園",221,"221幼保連携型認定こども園　カナリアこども園"]
[202956,"幼保連携型認定こども園　いりえ幼稚園",222,"222幼保連携型認定こども園　いりえ幼稚園"]
[204220,"幼保連携型明照認定こども園",223,"223幼保連携型明照認定こども園"]
[204221,"幼保連携型つきかげ認定こども園",224,"224幼保連携型つきかげ認定こども園"]
[204222,"幼保連携型認定星の杜こども園",225,"225幼保連携型認定星の杜こども園"]
[204223,"幼保連携型認定こども園　キッズキャンパス",226,"226幼保連携型認定こども園　キッズキャンパス"]
["204225","幼保連携型認定こども園　八多保育園",227,"227幼保連携型認定こども園　八多保育園"]
["204226","幼保連携型認定星の子こども園",228,"228幼保連携型認定星の子こども園"]
["204227","幼保連携型認定こども園　ひとみ保育園",229,"229幼保連携型認定こども園　ひとみ保育園"]
["204228","認定こども園　神戸鹿の子幼稚園",230,"230認定こども園　神戸鹿の子幼稚園"]
["204230","幼保連携型認定いつくしみこども園",231,"231幼保連携型認定いつくしみこども園"]
[206120,"幼保連携型認定こども園　のぞみ保育園",232,"232幼保連携型認定こども園　のぞみ保育園"]
[206121,"幼保連携型認定こども園　若竹こども園",233,"233幼保連携型認定こども園　若竹こども園"]
[206122,"幼保連携型認定こども園　名谷みどりこども園",234,"234幼保連携型認定こども園　名谷みどりこども園"]
[206123,"幼保連携型認定こども園　北須磨保育センター",235,"235幼保連携型認定こども園　北須磨保育センター"]
[206124,"幼保連携型認定こども園　あじさいこども園",236,"236幼保連携型認定こども園　あじさいこども園"]
[206125,"幼保連携型認定こども園　やまびこ保育園",237,"237幼保連携型認定こども園　やまびこ保育園"]
[202029,"認定こども園　夢の星幼稚園",238,"238認定こども園　夢の星幼稚園"]
[202144,"幼稚園型認定こども園　六甲幼稚園",239,"239幼稚園型認定こども園　六甲幼稚園"]
[202222,"認定こども園　神戸華僑幼稚園",240,"240認定こども園　神戸華僑幼稚園"]
["202426","認定こども園　みなと幼稚園",241,"241認定こども園　みなと幼稚園"]
[202433,"幼稚園型認定こども園　たちえ幼稚園",242,"242幼稚園型認定こども園　たちえ幼稚園"]
["202533","幼稚園型認定こども園　丸山小羊幼稚園",243,"243幼稚園型認定こども園　丸山小羊幼稚園"]
[202624,"認定こども園　禅昌寺幼稚園",244,"244認定こども園　禅昌寺幼稚園"]
["202633","幼稚園型認定こども園　須磨浦幼稚園",245,"245幼稚園型認定こども園　須磨浦幼稚園"]
["202634","幼稚園型認定こども園　平田幼稚園",246,"246幼稚園型認定こども園　平田幼稚園"]
[202728,"認定こども園　湊川短期大学附属神陵台幼稚園",247,"247認定こども園　湊川短期大学附属神陵台幼稚園"]
[202729,"認定こども園　湊川短期大学附属西舞子幼稚園",248,"248認定こども園　湊川短期大学附属西舞子幼稚園"]
["202733","認定こども園　聖マリアの園幼稚園",249,"249認定こども園　聖マリアの園幼稚園"]
["202747","幼稚園型認定こども園　愛垂幼稚園",250,"250幼稚園型認定こども園　愛垂幼稚園"]
["202750","幼稚園型認定こども園　星陵台めぐみ幼稚園",251,"251幼稚園型認定こども園　星陵台めぐみ幼稚園"]
[202823,"認定こども園　鈴蘭台幼稚園",252,"252認定こども園　鈴蘭台幼稚園"]
[202824,"認定こども園　ひよどり台幼稚園",253,"253認定こども園　ひよどり台幼稚園"]
[202825,"認定こども園　正英幼稚園",254,"254認定こども園　正英幼稚園"]
[202833,"認定こども園　聖ミカエル幼稚園",255,"255認定こども園　聖ミカエル幼稚園"]
[202929,"認定こども園　さくらんぼ幼稚園",256,"256認定こども園　さくらんぼ幼稚園"]
[202930,"認定こども園　いぶき幼稚園",257,"257認定こども園　いぶき幼稚園"]
[202957,"学校法人有野台幼稚園　春日台幼稚園",258,"258学校法人有野台幼稚園　春日台幼稚園"]
[204224,"認定こども園　六甲藤原台幼稚園",259,"259認定こども園　六甲藤原台幼稚園"]
[204229,"認定こども園　北六甲幼稚園",260,"260認定こども園　北六甲幼稚園"]
[206127,"認定こども園　妙法寺幼稚園",261,"261認定こども園　妙法寺幼稚園"]
["102020","光の園幼稚園",262,"262光の園幼稚園"]
["102021","甲南同胞幼稚園",263,{"$f":"C194&B194","v":"263甲南同胞幼稚園"}]
["102022","星の園幼稚園",264,"264星の園幼稚園"]
["102023","群華幼稚園",265,"265群華幼稚園"]
["102120","ランバス記念幼稚園",266,"266ランバス記念幼稚園"]
["102121","かおる幼稚園",267,"267かおる幼稚園"]
["102122","若草幼稚園",268,"268若草幼稚園"]
["102123","鶴甲幼稚園",269,"269鶴甲幼稚園"]
["102220","明照幼稚園",270,"270明照幼稚園"]
["102221","小さき花の園幼稚園",271,"271小さき花の園幼稚園"]
["102222","神戸教会いずみ幼稚園",272,"272神戸教会いずみ幼稚園"]
["102223","光の丘幼稚園",273,"273光の丘幼稚園"]
["102224","山手幼稚園",274,"274山手幼稚園"]
["102420","石井幼稚園",275,"275石井幼稚園"]
[102522,"あけぼの幼稚園",276,"276あけぼの幼稚園"]
[102523,"高取台幼稚園",277,"277高取台幼稚園"]
[102524,"神戸常盤大学附属ときわ幼稚園",278,"278神戸常盤大学附属ときわ幼稚園"]
["102620","千鳥幼稚園",279,"279千鳥幼稚園"]
["102621","須磨みどり幼稚園",280,"280須磨みどり幼稚園"]
["102920","高羽美賀多台幼稚園",281,"281高羽美賀多台幼稚園"]
[106121,"白川台幼稚園",282,"282白川台幼稚園"]
[null,"青い鳥学園第１幼稚園","私101","私101青い鳥学園第１幼稚園"]
[null,"青い鳥学園第２幼稚園","私102","私102青い鳥学園第２幼稚園"]
[null,"本山幼稚園","私104","私104本山幼稚園"]
[null,"甲南幼稚園","私107","私107甲南幼稚園"]
[null,"住吉学園幼稚園","私111","私111住吉学園幼稚園"]
[null,"頌栄幼稚園","私113","私113頌栄幼稚園"]
[null,"六甲アイランド幼稚園","私114","私114六甲アイランド幼稚園"]
[null,"西灘幼稚園","私209","私209西灘幼稚園"]
[null,"熊内幼稚園","私301","私301熊内幼稚園"]
[null,"ありの藤原幼稚園","私504","私504ありの藤原幼稚園"]
[null,"レナ幼稚園","私506",{"$f":"C224&B224","v":"私506レナ幼稚園"}]
[null,"広陵幼稚園","私507","私507広陵幼稚園"]
[null,"泉台幼稚園","私508","私508泉台幼稚園"]
[null,"しろはな幼稚園","私601","私601しろはな幼稚園"]
[null,"須磨幼稚園","私703","私703須磨幼稚園"]
[null,"育英幼稚園","私708","私708育英幼稚園"]
[null,"愛徳幼稚園","私804",{"$f":"C230&B230","v":"私804愛徳幼稚園"}]
[null,"神陵台愛徳幼稚園","私811",{"$f":"C231&B231","v":"私811神陵台愛徳幼稚園"}]
[null,"学が丘幼稚園","私813","私813学が丘幼稚園"]

{"sheet":"設定・確認","index":1,"n_rows":21,"n_cols":15,"rows_kept":21,"cut":false,"hidden":false,"merged":[[21,1,21,13],[17,7,17,10],[18,7,18,10],[11,7,11,10],[11,11,11,13],[12,11,12,13],[13,11,13,13],[14,11,14,13],[15,11,15,13],[16,11,16,13],[17,11,17,13],[18,11,18,13],[12,7,12,10],[13,7,13,10],[14,7,14,10],[18,1,18,5],[17,1,17,5],[14,1,14,5],[15,1,15,5],[16,1,16,5],[0,14,3,14],[15,7,15,10],[16,7,16,10],[5,1,5,5],[8,1,8,2],[8,4,8,5],[11,1,11,5],[12,1,12,5],[13,1,13,5]]}
["■設定・確認■",null,null,null,null,null,null,null,null,null,null,null,null,null,"＜『次月セット』ボタンについて＞\n・マクロを有効にすると使用できます。\n・タイトル部分の年・月を翌月にセットし\n　(年・月どちらか空白の場合はセットされません)、\n　各シートの入力欄の値を消去します。\n　※固定情報、児童・職員(氏名等)の情報は消去しません。"]
[null,"・実績調書の年月を入力してください",null,null,null,null,null,"・左で設定した年月内に「閉園日」「開園日」「振替休日」がある場合、"]
[null,"令和",6,"年",null,"月",null,"　以下に該当日付と種類を入力してください"]
[null,null,null,null,null,null,null,"年月日変換","曜日","該当日","種類","\n振替元の月日を入力","閉園理由 (例)大雨警報のため",{"$f":"IF(COUNTIF(N5:N9,\"?*\")>0,\"×\",\"\")","v":""}]
[null,"・幼稚園又は認定こども園名をプルダウン選択してください",null,null,null,null,null,{"$f":"IF(J5=\"\",\"\",DATE(2018+年,月,J5))","v":""},{"$f":"TEXT(H5,\"aaa\")","v":""},null,null,null,null,{"$f":"IF(J5=\"\",\"\",IF(MONTH(H5)<>月,\"該当日が正しくありません。(調書年月と異なる日付です)\",IF(AND(J5<>\"\",K5=\"\"),\"種類が未入力です。\",IF(AND(J5<>\"\",K5=\"振替休日\",L5=\"\"),\"振替元の月日が未入力です。\",IF(AND(J5<>\"\",K5=\"閉園日\",M5=\"\"),\"閉園理由が未入力です。\",\"\")))))","v":""}]
[null,null,null,null,null,null,null,{"$f":"IF(J6=\"\",\"\",DATE(2018+年,月,J6))","v":""},{"$f":"TEXT(H6,\"aaa\")","v":""},null,null,null,null,{"$f":"IF(J6=\"\",\"\",IF(MONTH(H6)<>月,\"該当日が正しくありません。(調書年月と異なる日付です)\",IF(AND(J6<>\"\",K6=\"\"),\"種類が未入力です。\",IF(AND(J6<>\"\",K6=\"振替休日\",L6=\"\"),\"振替元の月日が未入力です。\",IF(AND(J6<>\"\",K6=\"閉園日\",M6=\"\"),\"閉園理由が未入力です。\",\"\")))))","v":""}]
[null,null,null,null,null,null,null,{"$f":"IF(J7=\"\",\"\",DATE(2018+年,月,J7))","v":""},"",null,null,null,null,{"$f":"IF(J7=\"\",\"\",IF(MONTH(H7)<>月,\"該当日が正しくありません。(調書年月と異なる日付です)\",IF(AND(J7<>\"\",K7=\"\"),\"種類が未入力です。\",IF(AND(J7<>\"\",K7=\"振替休日\",L7=\"\"),\"振替元の月日が未入力です。\",IF(AND(J7<>\"\",K7=\"閉園日\",M7=\"\"),\"閉園理由が未入力です。\",\"\")))))","v":""}]
[null,"・標準教育時間を入力してください",null,null,null,null,null,{"$f":"IF(J8=\"\",\"\",DATE(2018+年,月,J8))","v":""},"",null,null,null,null,{"$f":"IF(J8=\"\",\"\",IF(MONTH(H8)<>月,\"該当日が正しくありません。(調書年月と異なる日付です)\",IF(AND(J8<>\"\",K8=\"\"),\"種類が未入力です。\",IF(AND(J8<>\"\",K8=\"振替休日\",L8=\"\"),\"振替元の月日が未入力です。\",IF(AND(J8<>\"\",K8=\"閉園日\",M8=\"\"),\"閉園理由が未入力です。\",\"\")))))","v":""}]
[null,null,null,"～",null,null,null,{"$f":"IF(J9=\"\",\"\",DATE(2018+年,月,J9))","v":""},"",null,null,null,null,{"$f":"IF(J9=\"\",\"\",IF(MONTH(H9)<>月,\"該当日が正しくありません。(調書年月と異なる日付です)\",IF(AND(J9<>\"\",K9=\"\"),\"種類が未入力です。\",IF(AND(J9<>\"\",K9=\"振替休日\",L9=\"\"),\"振替元の月日が未入力です。\",IF(AND(J9<>\"\",K9=\"閉園日\",M9=\"\"),\"閉園理由が未入力です。\",\"\")))))","v":""}]
[]
[null,"▼提出前チェック　※不備がある状態で提出された場合は、修正後、再提出をお願いしますので、必ずご確認ください。"]
[null,"シート ＜シート名をクリックすると該当シートに移動します＞",null,null,null,null,"不備ﾁｪｯｸ","チェック結果",null,null,null,"シート説明/注意事項"]
[null,"設定・確認(このシート)",null,null,null,null,{"$f":"IF(OR(年=\"\",月=\"\",施設名=\"\",開始時間=\"\",終了時間=\"\",$N$4=\"×\"),\"×\",\"◎\")","v":"×"},{"$f":"IF(OR(年=\"\",月=\"\"),\"年月に未入力があります。\",IF(施設名=\"\",\"施設名が未入力です。\",IF(OR(開始時間=\"\",終了時間=\"\"),\"標準教育時間に未入力があります。\",IF($N$4=\"×\",\"右上に入力された該当日・種類に不備があります。\",\"\"))))","v":"年月に未入力があります。"},null,null,null,"上部、基本情報を入力"]
[null,"①実績調書（在園児用の平日）",null,null,null,null,{"$f":"'①実績調書（在園児用の平日）'!$AQ$9","v":"◎"},{"$f":"IF($G$14=\"×\",\"利用区分の入力に誤りがあります。\",IF($G$14=\"△\",\"園児情報に未入力項目があります。\",IF($G$14=\"▲\",\"土日祝・閉園日等、入力対象外欄に入力があります。\",IF('①実績調書（在園児用の平日）'!AQ35=0,\"実績なし\",\"\"))))","v":"実績なし"},null,null,null,"在園児の平日教育標準時間外利用実績を入力\n※土・日・祝日に行事等で開園し、その振替として平日に休園した場合\n　 →行事等の開園日(土・日・祝日)の利用実績を入力"]
[null,"②実績調書（在園児用の長期休業日）",null,null,null,null,{"$f":"'②実績調書（在園児用の長期休業日）'!$AU$9","v":"◎"},{"$f":"IF($G$15=\"×\",\"利用区分の入力に誤りがあります。\",IF($G$15=\"△\",\"園児情報に未入力項目があります。\",IF($G$15=\"▲\",\"土日祝・閉園日等、入力対象外欄に入力があります。\",IF('②実績調書（在園児用の長期休業日）'!AU35=0,\"実績なし\",\"\"))))","v":"実績なし"},null,null,null,"在園児の長期休業日(夏休み等)利用実績を入力"]
[null,"③実績調書（在園児用の休日）",null,null,null,null,{"$f":"'③実績調書（在園児用の休日）'!$AQ$10","v":"◎"},{"$f":"IF($G$16=\"×\",\"利用区分の入力に誤りがあります。\",IF($G$16=\"△\",\"園児情報に未入力項目があります。\",IF('③実績調書（在園児用の休日）'!AQ36=0,\"実績なし\",\"\")))","v":"実績なし"},null,null,null,"在園児の休日利用実績を入力\n※警報等で閉園となった日の利用実績を入力\n※土・日・祝日に行事等で開園し、その振替として平日に休園した場合\n　 →振替として平日に休園した日の利用実績を入力\n※土・日・祝日に行事等で開園し、振替休園をしなかった場合\n　 →行事等の開園日(土・日・祝日)の利用実績を入力"]
[null,"④実績調書 (非在園児用)",null,null,null,null,{"$f":"'④実績調書 (非在園児用)'!$AQ$9","v":"◎"},{"$f":"IF($G$17=\"×\",\"利用区分の入力に誤りがあります。\",IF($G$17=\"△\",\"園児情報に未入力項目があります。\",IF('④実績調書 (非在園児用)'!AQ25=0,\"実績なし\",\"\")))","v":"実績なし"},null,null,null,"非在園児の利用実績を入力(平日・休日、長期休業日とも)"]
[null,"⑤実績調書 (特別支援児童用)",null,null,null,null,{"$f":"'⑤実績調書 (特別支援児童用)'!$AN$9","v":"◎"},{"$f":"IF($G$18=\"×\",\"利用区分の入力に誤りがあります。\",IF($G$18=\"△\",\"園児情報に未入力項目があります。\",IF('⑤実績調書 (特別支援児童用)'!AM25=0,\"実績なし\",\"\")))","v":"実績なし"},null,null,null,"特別支援児童の利用実績を入力(平日・休日、長期休業日とも)"]
[null,"⑥報告書",null,null,null,null,{"$f":"⑥報告書!$R$25","v":"◎"},{"$f":"IF($G$19=\"×\",\"処遇にあたった職員の氏名・時間に未入力があります。\",IF(⑥報告書!R23=0,\"実績なし\",\"\"))","v":"実績なし"},null,null,null,"①～⑤の利用実績に対し、\n担当職員名とそれにあたった時間を入力"]
[]
[null,"▼連絡欄","※実績調書・報告書に入力した内容について、特記すべき事項がある場合のみ入力してください"]

{"sheet":"①実績調書（在園児用の平日）","index":2,"n_rows":47,"n_cols":43,"rows_kept":47,"cut":false,"hidden":false,"merged":[[34,1,38,3],[6,3,8,3],[0,1,0,40],[2,15,2,16],[2,18,2,19],[4,7,4,9],[4,11,4,13],[4,31,4,42],[46,31,48,37],[45,32,45,41],[6,1,8,1],[6,2,8,2],[6,4,8,5],[6,6,6,37],[38,4,38,6],[36,40,36,41],[6,38,7,41],[35,38,35,41],[39,39,39,41],[37,39,38,41],[42,32,42,41],[43,32,43,41],[44,32,44,41],[41,31,41,41]]}
[null,"預かり保育補助事業（幼稚園型一時預かり事業）実績調書【在園児の平日用】"]
[]
[null,"→ボタン押下後、指定する行数分を下から2行目以降に追加します",null,null,null,null,null,null,null,null,null,null,null,null,"《令和　",{"$f":"年","v":6},null,"年",{"$f":"月","v":0},null,"月分》",null,null,"　"]
[]
[null,null,null,null,null,null,"【標準教育時間 ",{"$f":"開始時間","v":"00:00:00"},null,null,"～",{"$f":"終了時間","v":"00:00:00"},null,null,"】",null,null,null,null,null,null,null,null,null,null,null,null,"幼稚園又は認定こども園名：　　　　　　　　　　　　　　　　　　　　　　",null,null,null,{"$f":"施設名","v":0}]
[null,null,null,null,null,null,{"$f":"IF(COUNTIF(H6:AL6,\"×\")>0,\"×\",\"\")","v":""},{"$f":"IF(AND(OR(H9=\"土\",H9=\"日\",H9=\"祝\",H9=\"閉\",H9=\"\"),COUNTBLANK(H10:H34)<ROWS(H10:H34)),\"×\",\"\")","v":""},{"$f":"IF(AND(OR(I9=\"土\",I9=\"日\",I9=\"祝\",I9=\"閉\",I9=\"\"),COUNTBLANK(I10:I34)<ROWS(I10:I34)),\"×\",\"\")","v":""},"","","","","","","","","","","","","","","","","","","","","","","","","","","","",""]
[null,"園児名","市内児・受託児の別\n（※注１）","受託児\nの場合、\n委託元\n市町名","年齢",null,"預　　か　　り　　保　　育　　利　　用　　時　　間　　区　　分　　（※注２）",null,null,null,null,null,null,null,null,null,null,null,null,null,null,null,null,null,null,null,null,null,null,null,null,null,null,null,null,null,null,null,"利用日数合計"]
[null,null,null,null,null,null,"日",{"$f":"DATE(2018+$P$3,$S$3,COLUMN()-7)","v":"2023-12-01"},{"$f":"DATE(2018+$P$3,$S$3,COLUMN()-7)","v":"2023-12-02"},"2023-12-03","2023-12-04","2023-12-05","2023-12-06","2023-12-07","2023-12-08","2023-12-09","2023-12-10","2023-12-11","2023-12-12","2023-12-13","2023-12-14","2023-12-15","2023-12-16","2023-12-17","2023-12-18","2023-12-19","2023-12-20","2023-12-21","2023-12-22","2023-12-23","2023-12-24","2023-12-25","2023-12-26","2023-12-27","2023-12-28",{"$f":"IF(MONTH(DATE(2018+$P$3,$S$3,COLUMN()-7))=$S$3,DATE(2018+$P$3,$S$3,COLUMN()-7),\"\")","v":""},{"$f":"IF(MONTH(DATE(2018+$P$3,$S$3,COLUMN()-7))=$S$3,DATE(2018+$P$3,$S$3,COLUMN()-7),\"\")","v":""},""]
[null,null,null,null,null,null,"曜日",{"$f":"IF(H8=\"\",\"\",IF(AND(ISERROR(MATCH(H8,祝日,0)),ISERROR(MATCH(H8,特定日,0))),TEXT(H8,\"aaa\"),IF(ISERROR(MATCH(H8,特定日,0)),\"祝\",LEFT(VLOOKUP(H8,設定・確認!$H$5:$K$9,4,0),1))))","v":"金"},{"$f":"IF(I8=\"\",\"\",IF(AND(ISERROR(MATCH(I8,祝日,0)),ISERROR(MATCH(I8,特定日,0))),TEXT(I8,\"aaa\"),IF(ISERROR(MATCH(I8,特定日,0)),\"祝\",LEFT(VLOOKUP(I8,設定・確認!$H$5:$K$9,4,0),1))))","v":"土"},{"$f":"IF(J8=\"\",\"\",IF(AND(ISERROR(MATCH(J8,祝日,0)),ISERROR(MATCH(J8,特定日,0))),TEXT(J8,\"aaa\"),IF(ISERROR(MATCH(J8,特定日,0)),\"祝\",LEFT(VLOOKUP(J8,設定・確認!$H$5:$K$9,4,0),1))))","v":"日"},{"$f":"IF(K8=\"\",\"\",IF(AND(ISERROR(MATCH(K8,祝日,0)),ISERROR(MATCH(K8,特定日,0))),TEXT(K8,\"aaa\"),IF(ISERROR(MATCH(K8,特定日,0)),\"祝\",LEFT(VLOOKUP(K8,設定・確認!$H$5:$K$9,4,0),1))))","v":"月"},{"$f":"IF(L8=\"\",\"\",IF(AND(ISERROR(MATCH(L8,祝日,0)),ISERROR(MATCH(L8,特定日,0))),TEXT(L8,\"aaa\"),IF(ISERROR(MATCH(L8,特定日,0)),\"祝\",LEFT(VLOOKUP(L8,設定・確認!$H$5:$K$9,4,0),1))))","v":"火"},{"$f":"IF(M8=\"\",\"\",IF(AND(ISERROR(MATCH(M8,祝日,0)),ISERROR(MATCH(M8,特定日,0))),TEXT(M8,\"aaa\"),IF(ISERROR(MATCH(M8,特定日,0)),\"祝\",LEFT(VLOOKUP(M8,設定・確認!$H$5:$K$9,4,0),1))))","v":"水"},{"$f":"IF(N8=\"\",\"\",IF(AND(ISERROR(MATCH(N8,祝日,0)),ISERROR(MATCH(N8,特定日,0))),TEXT(N8,\"aaa\"),IF(ISERROR(MATCH(N8,特定日,0)),\"祝\",LEFT(VLOOKUP(N8,設定・確認!$H$5:$K$9,4,0),1))))","v":"木"},{"$f":"IF(O8=\"\",\"\",IF(AND(ISERROR(MATCH(O8,祝日,0)),ISERROR(MATCH(O8,特定日,0))),TEXT(O8,\"aaa\"),IF(ISERROR(MATCH(O8,特定日,0)),\"祝\",LEFT(VLOOKUP(O8,設定・確認!$H$5:$K$9,4,0),1))))","v":"金"},{"$f":"IF(P8=\"\",\"\",IF(AND(ISERROR(MATCH(P8,祝日,0)),ISERROR(MATCH(P8,特定日,0))),TEXT(P8,\"aaa\"),IF(ISERROR(MATCH(P8,特定日,0)),\"祝\",LEFT(VLOOKUP(P8,設定・確認!$H$5:$K$9,4,0),1))))","v":"土"},{"$f":"IF(Q8=\"\",\"\",IF(AND(ISERROR(MATCH(Q8,祝日,0)),ISERROR(MATCH(Q8,特定日,0))),TEXT(Q8,\"aaa\"),IF(ISERROR(MATCH(Q8,特定日,0)),\"祝\",LEFT(VLOOKUP(Q8,設定・確認!$H$5:$K$9,4,0),1))))","v":"日"},{"$f":"IF(R8=\"\",\"\",IF(AND(ISERROR(MATCH(R8,祝日,0)),ISERROR(MATCH(R8,特定日,0))),TEXT(R8,\"aaa\"),IF(ISERROR(MATCH(R8,特定日,0)),\"祝\",LEFT(VLOOKUP(R8,設定・確認!$H$5:$K$9,4,0),1))))","v":"月"},{"$f":"IF(S8=\"\",\"\",IF(AND(ISERROR(MATCH(S8,祝日,0)),ISERROR(MATCH(S8,特定日,0))),TEXT(S8,\"aaa\"),IF(ISERROR(MATCH(S8,特定日,0)),\"祝\",LEFT(VLOOKUP(S8,設定・確認!$H$5:$K$9,4,0),1))))","v":"火"},{"$f":"IF(T8=\"\",\"\",IF(AND(ISERROR(MATCH(T8,祝日,0)),ISERROR(MATCH(T8,特定日,0))),TEXT(T8,\"aaa\"),IF(ISERROR(MATCH(T8,特定日,0)),\"祝\",LEFT(VLOOKUP(T8,設定・確認!$H$5:$K$9,4,0),1))))","v":"水"},{"$f":"IF(U8=\"\",\"\",IF(AND(ISERROR(MATCH(U8,祝日,0)),ISERROR(MATCH(U8,特定日,0))),TEXT(U8,\"aaa\"),IF(ISERROR(MATCH(U8,特定日,0)),\"祝\",LEFT(VLOOKUP(U8,設定・確認!$H$5:$K$9,4,0),1))))","v":"木"},{"$f":"IF(V8=\"\",\"\",IF(AND(ISERROR(MATCH(V8,祝日,0)),ISERROR(MATCH(V8,特定日,0))),TEXT(V8,\"aaa\"),IF(ISERROR(MATCH(V8,特定日,0)),\"祝\",LEFT(VLOOKUP(V8,設定・確認!$H$5:$K$9,4,0),1))))","v":"金"},{"$f":"IF(W8=\"\",\"\",IF(AND(ISERROR(MATCH(W8,祝日,0)),ISERROR(MATCH(W8,特定日,0))),TEXT(W8,\"aaa\"),IF(ISERROR(MATCH(W8,特定日,0)),\"祝\",LEFT(VLOOKUP(W8,設定・確認!$H$5:$K$9,4,0),1))))","v":"土"},{"$f":"IF(X8=\"\",\"\",IF(AND(ISERROR(MATCH(X8,祝日,0)),ISERROR(MATCH(X8,特定日,0))),TEXT(X8,\"aaa\"),IF(ISERROR(MATCH(X8,特定日,0)),\"祝\",LEFT(VLOOKUP(X8,設定・確認!$H$5:$K$9,4,0),1))))","v":"日"},{"$f":"IF(Y8=\"\",\"\",IF(AND(ISERROR(MATCH(Y8,祝日,0)),ISERROR(MATCH(Y8,特定日,0))),TEXT(Y8,\"aaa\"),IF(ISERROR(MATCH(Y8,特定日,0)),\"祝\",LEFT(VLOOKUP(Y8,設定・確認!$H$5:$K$9,4,0),1))))","v":"月"},{"$f":"IF(Z8=\"\",\"\",IF(AND(ISERROR(MATCH(Z8,祝日,0)),ISERROR(MATCH(Z8,特定日,0))),TEXT(Z8,\"aaa\"),IF(ISERROR(MATCH(Z8,特定日,0)),\"祝\",LEFT(VLOOKUP(Z8,設定・確認!$H$5:$K$9,4,0),1))))","v":"火"},{"$f":"IF(AA8=\"\",\"\",IF(AND(ISERROR(MATCH(AA8,祝日,0)),ISERROR(MATCH(AA8,特定日,0))),TEXT(AA8,\"aaa\"),IF(ISERROR(MATCH(AA8,特定日,0)),\"祝\",LEFT(VLOOKUP(AA8,設定・確認!$H$5:$K$9,4,0),1))))","v":"水"},{"$f":"IF(AB8=\"\",\"\",IF(AND(ISERROR(MATCH(AB8,祝日,0)),ISERROR(MATCH(AB8,特定日,0))),TEXT(AB8,\"aaa\"),IF(ISERROR(MATCH(AB8,特定日,0)),\"祝\",LEFT(VLOOKUP(AB8,設定・確認!$H$5:$K$9,4,0),1))))","v":"木"},{"$f":"IF(AC8=\"\",\"\",IF(AND(ISERROR(MATCH(AC8,祝日,0)),ISERROR(MATCH(AC8,特定日,0))),TEXT(AC8,\"aaa\"),IF(ISERROR(MATCH(AC8,特定日,0)),\"祝\",LEFT(VLOOKUP(AC8,設定・確認!$H$5:$K$9,4,0),1))))","v":"金"},{"$f":"IF(AD8=\"\",\"\",IF(AND(ISERROR(MATCH(AD8,祝日,0)),ISERROR(MATCH(AD8,特定日,0))),TEXT(AD8,\"aaa\"),IF(ISERROR(MATCH(AD8,特定日,0)),\"祝\",LEFT(VLOOKUP(AD8,設定・確認!$H$5:$K$9,4,0),1))))","v":"土"},{"$f":"IF(AE8=\"\",\"\",IF(AND(ISERROR(MATCH(AE8,祝日,0)),ISERROR(MATCH(AE8,特定日,0))),TEXT(AE8,\"aaa\"),IF(ISERROR(MATCH(AE8,特定日,0)),\"祝\",LEFT(VLOOKUP(AE8,設定・確認!$H$5:$K$9,4,0),1))))","v":"日"},{"$f":"IF(AF8=\"\",\"\",IF(AND(ISERROR(MATCH(AF8,祝日,0)),ISERROR(MATCH(AF8,特定日,0))),TEXT(AF8,\"aaa\"),IF(ISERROR(MATCH(AF8,特定日,0)),\"祝\",LEFT(VLOOKUP(AF8,設定・確認!$H$5:$K$9,4,0),1))))","v":"月"},{"$f":"IF(AG8=\"\",\"\",IF(AND(ISERROR(MATCH(AG8,祝日,0)),ISERROR(MATCH(AG8,特定日,0))),TEXT(AG8,\"aaa\"),IF(ISERROR(MATCH(AG8,特定日,0)),\"祝\",LEFT(VLOOKUP(AG8,設定・確認!$H$5:$K$9,4,0),1))))","v":"火"},{"$f":"IF(AH8=\"\",\"\",IF(AND(ISERROR(MATCH(AH8,祝日,0)),ISERROR(MATCH(AH8,特定日,0))),TEXT(AH8,\"aaa\"),IF(ISERROR(MATCH(AH8,特定日,0)),\"祝\",LEFT(VLOOKUP(AH8,設定・確認!$H$5:$K$9,4,0),1))))","v":"水"},{"$f":"IF(AI8=\"\",\"\",IF(AND(ISERROR(MATCH(AI8,祝日,0)),ISERROR(MATCH(AI8,特定日,0))),TEXT(AI8,\"aaa\"),IF(ISERROR(MATCH(AI8,特定日,0)),\"祝\",LEFT(VLOOKUP(AI8,設定・確認!$H$5:$K$9,4,0),1))))","v":"木"},{"$f":"IF(AJ8=\"\",\"\",IF(AND(ISERROR(MATCH(AJ8,祝日,0)),ISERROR(MATCH(AJ8,特定日,0))),TEXT(AJ8,\"aaa\"),IF(ISERROR(MATCH(AJ8,特定日,0)),\"祝\",LEFT(VLOOKUP(AJ8,設定・確認!$H$5:$K$9,4,0),1))))","v":""},{"$f":"IF(AK8=\"\",\"\",IF(AND(ISERROR(MATCH(AK8,祝日,0)),ISERROR(MATCH(AK8,特定日,0))),TEXT(AK8,\"aaa\"),IF(ISERROR(MATCH(AK8,特定日,0)),\"祝\",LEFT(VLOOKUP(AK8,設定・確認!$H$5:$K$9,4,0),1))))","v":""},{"$f":"IF(AL8=\"\",\"\",IF(AND(ISERROR(MATCH(AL8,祝日,0)),ISERROR(MATCH(AL8,特定日,0))),TEXT(AL8,\"aaa\"),IF(ISERROR(MATCH(AL8,特定日,0)),\"祝\",LEFT(VLOOKUP(AL8,設定・確認!$H$5:$K$9,4,0),1))))","v":""},"①","②","③","④",{"$f":"IF(COUNTIF(AQ10:AQ34,\"×\")>0,\"×\",IF(COUNTIF(AQ10:AQ34,\"△\")>0,\"△\",IF(COUNTIF(H6:AL6,\"×\")>0,\"▲\",\"◎\")))","v":"◎"}]
[{"$f":"ROW()-9","v":1},null,null,null,null,"歳",null,null,null,null,null,null,null,null,null,null,null,null,null,null,null,null,null,null,null,null,null,null,null,null,null,null,null,null,null,null,null,null,{"$f":"COUNTIF($H10:$AL10,\"①\")","v":0},{"$f":"COUNTIF($H10:$AL10,\"②\")","v":0},{"$f":"COUNTIF($H10:$AL10,\"③\")","v":0},{"$f":"COUNTIF($H10:$AL10,\"④\")","v":0},{"$f":"IF(SUM(AM10:AP10)+COUNTBLANK(H10:AL10)<>31,\"×\",IF(OR(AND(B10<>\"\",C10=\"\"),AND(B10<>\"\",E10=\"\"),AND(B10<>\"\",C10=\"受託\",D10=\"\"),AND(B10=\"\",SUM(AM10:AP10)>0)),\"△\",\"\"))","v":""}]
[{"$f":"ROW()-9","v":2},null,null,null,null,"歳",null,null,null,null,null,null,null,null,null,null,null,null,null,null,null,null,null,null,null,null,null,null,null,null,null,null,null,null,null,null,null,null,{"$f":"COUNTIF($H11:$AL11,\"①\")","v":0},{"$f":"COUNTIF($H11:$AL11,\"②\")","v":0},{"$f":"COUNTIF($H11:$AL11,\"③\")","v":0},{"$f":"COUNTIF($H11:$AL11,\"④\")","v":0},{"$f":"IF(SUM(AM11:AP11)+COUNTBLANK(H11:AL11)<>31,\"×\",IF(OR(AND(B11<>\"\",C11=\"\"),AND(B11<>\"\",E11=\"\"),AND(B11<>\"\",C11=\"受託\",D11=\"\"),AND(B11=\"\",SUM(AM11:AP11)>0)),\"△\",\"\"))","v":""}]
[3,null,null,null,null,"歳",null,null,null,null,null,null,null,null,null,null,null,null,null,null,null,null,null,null,null,null,null,null,null,null,null,null,null,null,null,null,null,null,0,0,{"$f":"COUNTIF($H12:$AL12,\"③\")","v":0},0,""]
[4,null,null,null,null,"歳",null,null,null,null,null,null,null,null,null,null,null,null,null,null,null,null,null,null,null,null,null,null,null,null,null,null,null,null,null,null,null,null,0,0,0,0,""]
[5,null,null,null,null,"歳",null,null,null,null,null,null,null,null,null,null,null,null,null,null,null,null,null,null,null,null,null,null,null,null,null,null,null,null,null,null,null,null,0,0,0,0,""]
[6,null,null,null,null,"歳",null,null,null,null,null,null,null,null,null,null,null,null,null,null,null,null,null,null,null,null,null,null,null,null,null,null,null,null,null,null,null,null,0,0,0,0,""]
[7,null,null,null,null,"歳",null,null,null,null,null,null,null,null,null,null,null,null,null,null,null,null,null,null,null,null,null,null,null,null,null,null,null,null,null,null,null,null,0,0,0,0,""]
[8,null,null,null,null,"歳",null,null,null,null,null,null,null,null,null,null,null,null,null,null,null,null,null,null,null,null,null,null,null,null,null,null,null,null,null,null,null,null,0,0,0,0,""]
[9,null,null,null,null,"歳",null,null,null,null,null,null,null,null,null,null,null,null,null,null,null,null,null,null,null,null,null,null,null,null,null,null,null,null,null,null,null,null,0,0,0,0,""]
[10,null,null,null,null,"歳",null,null,null,null,null,null,null,null,null,null,null,null,null,null,null,null,null,null,null,null,null,null,null,null,null,null,null,null,null,null,null,null,0,0,0,0,""]
[11,null,null,null,null,"歳",null,null,null,null,null,null,null,null,null,null,null,null,null,null,null,null,null,null,null,null,null,null,null,null,null,null,null,null,null,null,null,null,0,0,0,0,""]
[12,null,null,null,null,"歳",null,null,null,null,null,null,null,null,null,null,null,null,null,null,null,null,null,null,null,null,null,null,null,null,null,null,null,null,null,null,null,null,0,0,0,0,""]
[13,null,null,null,null,"歳",null,null,null,null,null,null,null,null,null,null,null,null,null,null,null,null,null,null,null,null,null,null,null,null,null,null,null,null,null,null,null,null,0,0,0,0,""]
[14,null,null,null,null,"歳",null,null,null,null,null,null,null,null,null,null,null,null,null,null,null,null,null,null,null,null,null,null,null,null,null,null,null,null,null,null,null,null,0,0,0,0,""]
[15,null,null,null,null,"歳",null,null,null,null,null,null,null,null,null,null,null,null,null,null,null,null,null,null,null,null,null,null,null,null,null,null,null,null,null,null,null,null,0,0,0,0,""]
[16,null,null,null,null,"歳",null,null,null,null,null,null,null,null,null,null,null,null,null,null,null,null,null,null,null,null,null,null,null,null,null,null,null,null,null,null,null,null,0,0,0,0,""]
[17,null,null,null,null,"歳",null,null,null,null,null,null,null,null,null,null,null,null,null,null,null,null,null,null,null,null,null,null,null,null,null,null,null,null,null,null,null,null,0,0,0,0,""]
[18,null,null,null,null,"歳",null,null,null,null,null,null,null,null,null,null,null,null,null,null,null,null,null,null,null,null,null,null,null,null,null,null,null,null,null,null,null,null,0,0,0,0,""]
[19,null,null,null,null,"歳",null,null,null,null,null,null,null,null,null,null,null,null,null,null,null,null,null,null,null,null,null,null,null,null,null,null,null,null,null,null,null,null,0,0,0,0,""]
[20,null,null,null,null,"歳",null,null,null,null,null,null,null,null,null,null,null,null,null,null,null,null,null,null,null,null,null,null,null,null,null,null,null,null,null,null,null,null,0,0,0,0,""]
[21,null,null,null,null,"歳",null,null,null,null,null,null,null,null,null,null,null,null,null,null,null,null,null,null,null,null,null,null,null,null,null,null,null,null,null,null,null,null,{"$f":"COUNTIF($H30:$AL30,\"①\")","v":0},{"$f":"COUNTIF($H30:$AL30,\"②\")","v":0},{"$f":"COUNTIF($H30:$AL30,\"③\")","v":0},{"$f":"COUNTIF($H30:$AL30,\"④\")","v":0},""]
[22,null,null,null,null,"歳",null,null,null,null,null,null,null,null,null,null,null,null,null,null,null,null,null,null,null,null,null,null,null,null,null,null,null,null,null,null,null,null,0,0,0,0,""]
[23,null,null,null,null,"歳",null,null,null,null,null,null,null,null,null,null,null,null,null,null,null,null,null,null,null,null,null,null,null,null,null,null,null,null,null,null,null,null,0,0,0,0,""]
[24,null,null,null,null,"歳",null,null,null,null,null,null,null,null,null,null,null,null,null,null,null,null,null,null,null,null,null,null,null,null,null,null,null,null,null,null,null,null,0,0,0,0,""]
[25,null,null,null,null,"歳",null,null,null,null,null,null,null,null,null,null,null,null,null,null,null,null,null,null,null,null,null,null,null,null,null,null,null,null,null,null,null,null,0,0,0,0,""]
[null,"預かり保育利用園児数合計（人）\n　【年齢別】",null,null,"満3","歳",null,{"$f":"COUNTIFS($E$10:$E$34,$E35,H$10:H$34,\"<>\")","v":0},0,0,0,0,0,0,0,0,0,{"$f":"COUNTIFS($E$10:$E$34,$E35,R$10:R$34,\"<>\")","v":0},0,0,0,0,0,0,0,0,0,{"$f":"COUNTIFS($E$10:$E$34,$E35,AB$10:AB$34,\"<>\")","v":0},0,0,0,0,0,0,0,0,0,0,{"$f":"SUM(AM10:AM34)","v":0},{"$f":"SUM(AN10:AN34)","v":0},{"$f":"SUM(AO10:AO34)","v":0},{"$f":"SUM(AP10:AP34)","v":0},{"$f":"SUM(AM35:AP35)","v":0}]
[null,null,null,null,3,"歳",null,0,0,0,0,0,0,0,0,0,0,0,0,0,0,0,0,0,0,0,0,0,0,0,0,0,0,0,0,0,0,0]
[null,null,null,null,4,"歳",null,0,0,0,0,0,0,0,0,0,0,0,0,0,0,0,0,0,0,0,0,0,0,0,0,0,0,0,0,0,0,0]
[null,null,null,null,5,"歳",null,0,0,0,0,0,0,0,0,0,0,0,0,0,0,0,0,0,0,0,0,0,0,0,0,0,0,0,0,0,0,0,null,"在園児の平日（計）\n①+②+③+④"]
[null,null,null,null,"計",null,null,{"$f":"SUM(H35:H38)","v":0},{"$f":"SUM(I35:I38)","v":0},0,0,0,0,0,0,0,0,0,0,0,0,0,0,0,0,0,0,0,0,0,0,0,0,0,0,0,0,0]
[null,null,null,null,null,null,null,null,null,null,null,null,null,null,null,null,null,null,null,null,null,null,null,null,null,null,null,null,null,null,null,null,null,null,null,null,null,null,null,{"$f":"SUM(AM35:AP35)","v":0}]
[null,"備考"]
[null,"注１　他の市町村で支給認定を受けた子どもや、市外に居住している子どもは神戸市の補助対象外です。居住市町村にお問い合わせしてください。",null,null,null,null,null,null,null,null,null,null,null,null,null,null,null,null,null,null,null,null,null,null,null,null,null,null,null,null,null,"利用時間区分表"]
[null,"注２　預かり保育利用時間区分には、利用した日の利用時間ごとに区分して右記の表のとおり番号を付け、その番号を記入してください。",null,null,null,null,null,null,null,null,null,null,null,null,null,null,null,null,null,null,null,null,null,null,null,null,null,null,null,null,null,"①","平日の教育標準時間外の４時間以下"]
[null,"注３　土・日・祝日に行事等で開園し、その振替として平日に休園した場合、行事等による開園日の実績を平日用の報告書に、",null,null,null,null,null,null,null,null,null,null,null,null,null,null,null,null,null,null,null,null,null,null,null,null,null,null,null,null,null,"②","平日の教育標準時間外の４時間超６時間未満"]
[null,"      振替休園の日の実績を休日用の報告書に計上してください。",null,null,null,null,null,null,null,null,null,null,null,null,null,null,null,null,null,null,null,null,null,null,null,null,null,null,null,null,null,"③","平日の教育標準時間外の６時間以上７時間未満"]
[null,"　　　※振替休園をしなかった場合、土・日・祝日に行事等で開園した日の実績を休日用の報告書に計上してください。",null,null,null,null,null,null,null,null,null,null,null,null,null,null,null,null,null,null,null,null,null,null,null,null,null,null,null,null,null,"④","平日の教育標準時間外の７時間以上"]
[null,null,null,null,null,null,null,null,null,null,null,null,null,null,null,null,null,null,null,null,null,null,null,null,null,null,null,null,null,null,null,"例：４時間＝①\n　　４時間２０分＝②\n　　６時間＝③\n　　７時間＝④"]

{"sheet":"②実績調書（在園児用の長期休業日）","index":3,"n_rows":50,"n_cols":47,"rows_kept":50,"cut":false,"hidden":false,"merged":[[38,4,38,5],[6,3,8,3],[34,1,38,3],[6,1,8,1],[6,2,8,2],[6,4,8,5],[6,38,7,45],[0,1,0,37],[2,15,2,16],[2,18,2,19],[4,7,4,9],[4,11,4,13],[48,33,48,41],[49,33,49,41],[4,37,4,45],[37,39,38,41],[39,39,39,41],[37,43,38,45],[39,43,39,45],[41,32,41,41],[42,33,42,41],[43,33,43,41],[44,33,44,41],[45,33,45,41],[46,33,46,41],[47,33,47,41],[40,38,40,41],[6,6,6,37]]}
[null,"預かり保育補助事業（幼稚園型一時預かり事業）実績調書【在園児の長期休業用】"]
[]
[null,"→ボタン押下後、指定する行数分を下から2行目以降に追加します",null,null,null,null,null,null,null,null,null,null,null,null,"《令和　",{"$f":"年","v":6},null,"年",{"$f":"月","v":0},null,"月分》"]
[]
[null,null,null,null,null,null,"【標準教育時間 ",{"$f":"開始時間","v":"00:00:00"},null,null,"～",{"$f":"終了時間","v":"00:00:00"},null,null,"】",null,null,null,null,null,null,null,null,null,null,null,null,null,null,null,null,null,null,"幼稚園又は認定こども園名：　　　　　　　　　　　　　　　　　　　　　　",null,null,null,{"$f":"施設名","v":0}]
[null,null,null,null,null,null,{"$f":"IF(COUNTIF(H6:AL6,\"×\")>0,\"×\",\"\")","v":""},{"$f":"IF(AND(OR(H9=\"土\",H9=\"日\",H9=\"祝\",H9=\"閉\",H9=\"\"),COUNTBLANK(H10:H34)<ROWS(H10:H34)),\"×\",\"\")","v":""},{"$f":"IF(AND(OR(I9=\"土\",I9=\"日\",I9=\"祝\",I9=\"閉\",I9=\"\"),COUNTBLANK(I10:I34)<ROWS(I10:I34)),\"×\",\"\")","v":""},"","","","","","","","","","","","","","","","","","","","","","","","","","","","",""]
[null,"園児名","市内児・受託児の別\n（※注１）","受託児\nの場合、\n委託元\n市町名","年齢",null,"預　　か　　り　　保　　育　　利　　用　　時　　間　　区　　分　　（※注２）",null,null,null,null,null,null,null,null,null,null,null,null,null,null,null,null,null,null,null,null,null,null,null,null,null,null,null,null,null,null,null,"利用日数合計"]
[null,null,null,null,null,null,"日",1,2,3,4,5,6,7,8,9,10,11,12,13,14,15,16,17,18,19,20,21,22,23,24,25,26,27,28,{"$f":"'①実績調書（在園児用の平日）'!AJ8","v":""},{"$f":"'①実績調書（在園児用の平日）'!AK8","v":""},{"$f":"'①実績調書（在園児用の平日）'!AL8","v":""}]
[null,null,null,null,null,null,"曜日",{"$f":"'①実績調書（在園児用の平日）'!H9","v":"金"},{"$f":"'①実績調書（在園児用の平日）'!I9","v":"土"},{"$f":"'①実績調書（在園児用の平日）'!J9","v":"日"},{"$f":"'①実績調書（在園児用の平日）'!K9","v":"月"},{"$f":"'①実績調書（在園児用の平日）'!L9","v":"火"},{"$f":"'①実績調書（在園児用の平日）'!M9","v":"水"},{"$f":"'①実績調書（在園児用の平日）'!N9","v":"木"},{"$f":"'①実績調書（在園児用の平日）'!O9","v":"金"},{"$f":"'①実績調書（在園児用の平日）'!P9","v":"土"},{"$f":"'①実績調書（在園児用の平日）'!Q9","v":"日"},{"$f":"'①実績調書（在園児用の平日）'!R9","v":"月"},{"$f":"'①実績調書（在園児用の平日）'!S9","v":"火"},{"$f":"'①実績調書（在園児用の平日）'!T9","v":"水"},{"$f":"'①実績調書（在園児用の平日）'!U9","v":"木"},{"$f":"'①実績調書（在園児用の平日）'!V9","v":"金"},{"$f":"'①実績調書（在園児用の平日）'!W9","v":"土"},{"$f":"'①実績調書（在園児用の平日）'!X9","v":"日"},{"$f":"'①実績調書（在園児用の平日）'!Y9","v":"月"},{"$f":"'①実績調書（在園児用の平日）'!Z9","v":"火"},{"$f":"'①実績調書（在園児用の平日）'!AA9","v":"水"},{"$f":"'①実績調書（在園児用の平日）'!AB9","v":"木"},{"$f":"'①実績調書（在園児用の平日）'!AC9","v":"金"},{"$f":"'①実績調書（在園児用の平日）'!AD9","v":"土"},{"$f":"'①実績調書（在園児用の平日）'!AE9","v":"日"},{"$f":"'①実績調書（在園児用の平日）'!AF9","v":"月"},{"$f":"'①実績調書（在園児用の平日）'!AG9","v":"火"},{"$f":"'①実績調書（在園児用の平日）'!AH9","v":"水"},{"$f":"'①実績調書（在園児用の平日）'!AI9","v":"木"},{"$f":"'①実績調書（在園児用の平日）'!AJ9","v":""},{"$f":"'①実績調書（在園児用の平日）'!AK9","v":""},{"$f":"'①実績調書（在園児用の平日）'!AL9","v":""},"⑤","⑥","⑦","⑧","⑨","⑩","⑪","⑫",{"$f":"IF(COUNTIF(AU10:AU34,\"×\")>0,\"×\",IF(COUNTIF(AU10:AU34,\"△\")>0,\"△\",IF(COUNTIF(H6:AL6,\"×\")>0,\"▲\",\"◎\")))","v":"◎"}]
[null,null,null,null,null,"歳",null,null,null,null,null,null,null,null,null,null,null,null,null,null,null,null,null,null,null,null,null,null,null,null,null,null,null,null,null,null,null,null,{"$f":"COUNTIF($H10:$AL10,\"⑤\")","v":0},{"$f":"COUNTIF($H10:$AL10,\"⑥\")","v":0},{"$f":"COUNTIF($H10:$AL10,\"⑦\")","v":0},{"$f":"COUNTIF($H10:$AL10,\"⑧\")","v":0},{"$f":"COUNTIF($H10:$AL10,\"⑨\")","v":0},{"$f":"COUNTIF($H10:$AL10,\"⑩\")","v":0},{"$f":"COUNTIF($H10:$AL10,\"⑪\")","v":0},{"$f":"COUNTIF($H10:$AL10,\"⑫\")","v":0},{"$f":"IF(SUM(AM10:AT10)<>COUNTA(H10:AL10),\"×\",IF(OR(AND(B10<>\"\",C10=\"\"),AND(B10<>\"\",E10=\"\"),AND(B10<>\"\",C10=\"受託\",D10=\"\"),AND(B10=\"\",SUM(AM10:AT10)>0)),\"△\",\"\"))","v":""}]
[null,null,null,null,null,"歳",null,null,null,null,null,null,null,null,null,null,null,null,null,null,null,null,null,null,null,null,null,null,null,null,null,null,null,null,null,null,null,null,{"$f":"COUNTIF($H11:$AL11,\"⑤\")","v":0},{"$f":"COUNTIF($H11:$AL11,\"⑥\")","v":0},{"$f":"COUNTIF($H11:$AL11,\"⑦\")","v":0},{"$f":"COUNTIF($H11:$AL11,\"⑧\")","v":0},{"$f":"COUNTIF($H11:$AL11,\"⑨\")","v":0},{"$f":"COUNTIF($H11:$AL11,\"⑩\")","v":0},{"$f":"COUNTIF($H11:$AL11,\"⑪\")","v":0},{"$f":"COUNTIF($H11:$AL11,\"⑫\")","v":0},{"$f":"IF(SUM(AM11:AT11)<>COUNTA(H11:AL11),\"×\",IF(OR(AND(B11<>\"\",C11=\"\"),AND(B11<>\"\",E11=\"\"),AND(B11<>\"\",C11=\"受託\",D11=\"\"),AND(B11=\"\",SUM(AM11:AT11)>0)),\"△\",\"\"))","v":""}]
[null,null,null,null,null,"歳",null,null,null,null,null,null,null,null,null,null,null,null,null,null,null,null,null,null,null,null,null,null,null,null,null,null,null,null,null,null,null,null,0,0,0,0,0,0,0,0,""]
[null,null,null,null,null,"歳",null,null,null,null,null,null,null,null,null,null,null,null,null,null,null,null,null,null,null,null,null,null,null,null,null,null,null,null,null,null,null,null,0,0,0,0,0,0,0,0,""]
[null,null,null,null,null,"歳",null,null,null,null,null,null,null,null,null,null,null,null,null,null,null,null,null,null,null,null,null,null,null,null,null,null,null,null,null,null,null,null,0,0,0,0,0,0,0,0,""]
[null,null,null,null,null,"歳",null,null,null,null,null,null,null,null,null,null,null,null,null,null,null,null,null,null,null,null,null,null,null,null,null,null,null,null,null,null,null,null,0,0,0,0,0,0,0,0,""]
[null,null,null,null,null,"歳",null,null,null,null,null,null,null,null,null,null,null,null,null,null,null,null,null,null,null,null,null,null,null,null,null,null,null,null,null,null,null,null,0,0,0,0,0,0,0,0,""]
[null,null,null,null,null,"歳",null,null,null,null,null,null,null,null,null,null,null,null,null,null,null,null,null,null,null,null,null,null,null,null,null,null,null,null,null,null,null,null,0,0,0,0,0,0,0,0,""]
[null,null,null,null,null,"歳",null,null,null,null,null,null,null,null,null,null,null,null,null,null,null,null,null,null,null,null,null,null,null,null,null,null,null,null,null,null,null,null,{"$f":"COUNTIF($H18:$AL18,\"⑤\")","v":0},0,0,0,0,0,0,0,""]
[null,null,null,null,null,"歳",null,null,null,null,null,null,null,null,null,null,null,null,null,null,null,null,null,null,null,null,null,null,null,null,null,null,null,null,null,null,null,null,0,0,0,0,0,0,{"$f":"COUNTIF($H19:$AL19,\"⑪\")","v":0},0,""]
[null,null,null,null,null,"歳",null,null,null,null,null,null,null,null,null,null,null,null,null,null,null,null,null,null,null,null,null,null,null,null,null,null,null,null,null,null,null,null,0,0,0,0,0,0,0,0,""]
[null,null,null,null,null,"歳",null,null,null,null,null,null,null,null,null,null,null,null,null,null,null,null,null,null,null,null,null,null,null,null,null,null,null,null,null,null,null,null,0,0,0,0,0,0,0,0,""]
[null,null,null,null,null,"歳",null,null,null,null,null,null,null,null,null,null,null,null,null,null,null,null,null,null,null,null,null,null,null,null,null,null,null,null,null,null,null,null,0,0,0,0,0,0,0,0,""]
[null,null,null,null,null,"歳",null,null,null,null,null,null,null,null,null,null,null,null,null,null,null,null,null,null,null,null,null,null,null,null,null,null,null,null,null,null,null,null,0,0,0,0,0,0,0,0,""]
[null,null,null,null,null,"歳",null,null,null,null,null,null,null,null,null,null,null,null,null,null,null,null,null,null,null,null,null,null,null,null,null,null,null,null,null,null,null,null,0,0,0,0,0,0,0,0,""]
[null,null,null,null,null,"歳",null,null,null,null,null,null,null,null,null,null,null,null,null,null,null,null,null,null,null,null,null,null,null,null,null,null,null,null,null,null,null,null,0,0,0,0,0,0,0,0,""]
[null,null,null,null,null,"歳",null,null,null,null,null,null,null,null,null,null,null,null,null,null,null,null,null,null,null,null,null,null,null,null,null,null,null,null,null,null,null,null,0,0,0,0,0,0,0,0,""]
[null,null,null,null,null,"歳",null,null,null,null,null,null,null,null,null,null,null,null,null,null,null,null,null,null,null,null,null,null,null,null,null,null,null,null,null,null,null,null,0,0,0,0,0,0,0,0,""]
[null,null,null,null,null,"歳",null,null,null,null,null,null,null,null,null,null,null,null,null,null,null,null,null,null,null,null,null,null,null,null,null,null,null,null,null,null,null,null,0,0,0,0,0,0,0,0,""]
[null,null,null,null,null,"歳",null,null,null,null,null,null,null,null,null,null,null,null,null,null,null,null,null,null,null,null,null,null,null,null,null,null,null,null,null,null,null,null,0,0,0,0,0,0,0,0,""]
[null,null,null,null,null,"歳",null,null,null,null,null,null,null,null,null,null,null,null,null,null,null,null,null,null,null,null,null,null,null,null,null,null,null,null,null,null,null,null,{"$f":"COUNTIF($H30:$AL30,\"⑤\")","v":0},{"$f":"COUNTIF($H30:$AL30,\"⑥\")","v":0},{"$f":"COUNTIF($H30:$AL30,\"⑦\")","v":0},{"$f":"COUNTIF($H30:$AL30,\"⑧\")","v":0},{"$f":"COUNTIF($H30:$AL30,\"⑨\")","v":0},{"$f":"COUNTIF($H30:$AL30,\"⑩\")","v":0},{"$f":"COUNTIF($H30:$AL30,\"⑪\")","v":0},{"$f":"COUNTIF($H30:$AL30,\"⑫\")","v":0},""]
[null,null,null,null,null,"歳",null,null,null,null,null,null,null,null,null,null,null,null,null,null,null,null,null,null,null,null,null,null,null,null,null,null,null,null,null,null,null,null,0,0,0,0,0,0,0,0,""]
[null,null,null,null,null,"歳",null,null,null,null,null,null,null,null,null,null,null,null,null,null,null,null,null,null,null,null,null,null,null,null,null,null,null,null,null,null,null,null,0,0,0,0,0,0,0,0,""]
[null,null,null,null,null,"歳",null,null,null,null,null,null,null,null,null,null,null,null,null,null,null,null,null,null,null,null,null,null,null,null,null,null,null,null,null,null,null,null,0,0,0,0,0,0,0,0,""]
[null,null,null,null,null,"歳",null,null,null,null,null,null,null,null,null,null,null,null,null,null,null,null,null,null,null,null,null,null,null,null,null,null,null,null,null,null,null,null,0,0,0,0,0,0,0,0,""]
[null,"預かり保育利用園児数合計（人）\n　【年齢別】",null,null,"満3","歳",null,{"$f":"COUNTIFS($E$10:$E$34,$E35,H$10:H$34,\"<>\")","v":0},0,0,0,0,0,0,0,0,0,{"$f":"COUNTIFS($E$10:$E$34,$E35,R$10:R$34,\"<>\")","v":0},0,0,0,0,0,0,0,0,0,{"$f":"COUNTIFS($E$10:$E$34,$E35,AB$10:AB$34,\"<>\")","v":0},0,0,0,0,0,0,0,0,0,0,{"$f":"SUM(AM10:AM34)","v":0},0,0,0,0,0,0,0,{"$f":"SUM(AM35:AT35)","v":0}]
[null,null,null,null,3,"歳",null,0,0,0,0,0,0,0,0,0,0,0,0,0,0,0,0,0,0,0,0,0,0,0,0,0,0,0,0,0,0,0]
[null,null,null,null,4,"歳",null,0,0,0,0,0,0,0,0,0,0,0,0,0,0,0,0,0,0,0,0,0,0,0,0,0,0,0,0,0,0,0]
[null,null,null,null,5,"歳",null,0,0,0,0,0,0,0,0,0,0,0,0,0,0,0,0,0,0,0,0,0,0,0,0,0,0,0,0,0,0,0,null,"長期休業日8時間未満（計）\n⑤+⑥+⑦+⑧\n",null,null,null,"長期休業日8時間以上（計）\n⑨+⑩+⑪+⑫\n"]
[null,null,null,null,"計",null,null,{"$f":"SUM(H35:H38)","v":0},{"$f":"SUM(I35:I38)","v":0},0,0,0,0,0,0,0,0,0,0,0,0,0,0,0,0,0,0,0,0,0,0,0,0,0,0,0,0,0]
[null,null,null,null,null,null,null,null,null,null,null,null,null,null,null,null,null,null,null,null,null,null,null,null,null,null,null,null,null,null,null,null,null,null,null,null,null,null,null,{"$f":"SUM(AM35:AP35)","v":0},null,null,null,{"$f":"SUM(AQ35:AT35)","v":0}]
[null,"備考"]
[null,"注１　他の市町村で支給認定を受けた子どもや、市外に居住している子どもは神戸市の補助対象外です。居住市町村にお問い合わせしてください。",null,null,null,null,null,null,null,null,null,null,null,null,null,null,null,null,null,null,null,null,null,null,null,null,null,null,null,null,null,null,"利用時間区分表"]
[null,"注２　預かり保育利用時間区分には、利用した日の利用時間ごとに区分して右記の表のとおり番号を付け、その番号を記入してください。",null,null,null,null,null,null,null,null,null,null,null,null,null,null,null,null,null,null,null,null,null,null,null,null,null,null,null,null,null,null,"⑤","長期休業日の４時間以内（～４ｈ）"]
[null,null,null,null,null,null,null,null,null,null,null,null,null,null,null,null,null,null,null,null,null,null,null,null,null,null,null,null,null,null,null,null,"⑥","長期休業日の４時間超６時間未満"]
[null,null,null,null,null,null,null,null,null,null,null,null,null,null,null,null,null,null,null,null,null,null,null,null,null,null,null,null,null,null,null,null,"⑦","長期休業日の６時間以上７時間未満"]
[null,null,null,null,null,null,null,null,null,null,null,null,null,null,null,null,null,null,null,null,null,null,null,null,null,null,null,null,null,null,null,null,"⑧","長期休業日の７時間以上8時間未満"]
[null,null,null,null,null,null,null,null,null,null,null,null,null,null,null,null,null,null,null,null,null,null,null,null,null,null,null,null,null,null,null,null,"⑨","長期休業日の８時間"]
[null,null,null,null,null,null,null,null,null,null,null,null,null,null,null,null,null,null,null,null,null,null,null,null,null,null,null,null,null,null,null,null,"⑩","長期休業日の８時間超１０時間未満"]
[null,null,null,null,null,null,null,null,null,null,null,null,null,null,null,null,null,null,null,null,null,null,null,null,null,null,null,null,null,null,null,null,"⑪","長期休業日の１０時間以上１１時間未満"]
[null,null,null,null,null,null,null,null,null,null,null,null,null,null,null,null,null,null,null,null,null,null,null,null,null,null,null,null,null,null,null,null,"⑫","長期休業日の１１時間以上（１１ｈ～）"]

{"sheet":"③実績調書（在園児用の休日）","index":4,"n_rows":47,"n_cols":43,"rows_kept":47,"cut":false,"hidden":false,"merged":[[6,38,8,41],[38,39,39,41],[45,40,45,41],[46,40,46,41],[42,29,42,38],[43,30,43,38],[44,30,44,38],[45,30,45,38],[46,30,46,38],[44,40,44,41],[41,40,41,41],[42,40,42,41],[43,40,43,41],[40,39,40,41],[37,40,37,41],[6,1,9,1],[6,2,9,2],[6,4,9,5],[6,6,6,37],[39,4,39,5],[6,3,9,3],[35,1,39,3],[0,1,0,40],[2,15,2,16],[2,18,2,19],[4,7,4,9],[4,11,4,13],[4,31,4,41]]}
[null,"預かり保育補助事業（幼稚園型一時預かり事業）実績調書【在園児の休日用】"]
[]
[null,"→ボタン押下後、指定する行数分を下から2行目以降に追加します",null,null,null,null,null,null,null,null,null,null,null,null,"《令和　",{"$f":"年","v":6},null,"年",{"$f":"月","v":0},null,"月分》"]
[]
[null,null,null,null,null,null,"【標準教育時間 ",{"$f":"開始時間","v":"00:00:00"},null,null,"～",{"$f":"終了時間","v":"00:00:00"},null,null,"】",null,null,null,null,null,null,null,null,null,null,null,null,"幼稚園又は認定こども園名：　　　　　　　　　　　　　　　　　　　　　　",null,null,null,{"$f":"施設名","v":0}]
[]
[null,"園児名","市内児・受託児の別\n（※注１）","受託児\nの場合、\n委託元\n市町名","年齢",null,"預　　か　　り　　保　　育　　利　　用　　時　　間　　区　　分　　（※注２）",null,null,null,null,null,null,null,null,null,null,null,null,null,null,null,null,null,null,null,null,null,null,null,null,null,null,null,null,null,null,null,"利用日数合計"]
[null,null,null,null,null,null,"日",1,2,3,4,5,6,7,8,9,10,11,12,13,14,15,16,17,18,19,20,21,22,23,24,25,26,27,28,{"$f":"'①実績調書（在園児用の平日）'!AJ8","v":""},{"$f":"'①実績調書（在園児用の平日）'!AK8","v":""},{"$f":"'①実績調書（在園児用の平日）'!AL8","v":""}]
[null,null,null,null,null,null,"祝日・\n代休等",{"$f":"IF(OR(H10=\"日\",H10=\"土\",H40=0),\"\",\"○\")","v":""},{"$f":"IF(OR(I10=\"日\",I10=\"土\",I40=0),\"\",\"○\")","v":""},"","","","","","","","","","","","","","","","","","","","","","","","","","","","",""]
[null,null,null,null,null,null,"曜日",{"$f":"'①実績調書（在園児用の平日）'!H9","v":"金"},{"$f":"'①実績調書（在園児用の平日）'!I9","v":"土"},{"$f":"'①実績調書（在園児用の平日）'!J9","v":"日"},{"$f":"'①実績調書（在園児用の平日）'!K9","v":"月"},{"$f":"'①実績調書（在園児用の平日）'!L9","v":"火"},{"$f":"'①実績調書（在園児用の平日）'!M9","v":"水"},{"$f":"'①実績調書（在園児用の平日）'!N9","v":"木"},{"$f":"'①実績調書（在園児用の平日）'!O9","v":"金"},{"$f":"'①実績調書（在園児用の平日）'!P9","v":"土"},{"$f":"'①実績調書（在園児用の平日）'!Q9","v":"日"},{"$f":"'①実績調書（在園児用の平日）'!R9","v":"月"},{"$f":"'①実績調書（在園児用の平日）'!S9","v":"火"},{"$f":"'①実績調書（在園児用の平日）'!T9","v":"水"},{"$f":"'①実績調書（在園児用の平日）'!U9","v":"木"},{"$f":"'①実績調書（在園児用の平日）'!V9","v":"金"},{"$f":"'①実績調書（在園児用の平日）'!W9","v":"土"},{"$f":"'①実績調書（在園児用の平日）'!X9","v":"日"},{"$f":"'①実績調書（在園児用の平日）'!Y9","v":"月"},{"$f":"'①実績調書（在園児用の平日）'!Z9","v":"火"},{"$f":"'①実績調書（在園児用の平日）'!AA9","v":"水"},{"$f":"'①実績調書（在園児用の平日）'!AB9","v":"木"},{"$f":"'①実績調書（在園児用の平日）'!AC9","v":"金"},{"$f":"'①実績調書（在園児用の平日）'!AD9","v":"土"},{"$f":"'①実績調書（在園児用の平日）'!AE9","v":"日"},{"$f":"'①実績調書（在園児用の平日）'!AF9","v":"月"},{"$f":"'①実績調書（在園児用の平日）'!AG9","v":"火"},{"$f":"'①実績調書（在園児用の平日）'!AH9","v":"水"},{"$f":"'①実績調書（在園児用の平日）'!AI9","v":"木"},{"$f":"'①実績調書（在園児用の平日）'!AJ9","v":""},{"$f":"'①実績調書（在園児用の平日）'!AK9","v":""},{"$f":"'①実績調書（在園児用の平日）'!AL9","v":""},"⑬","⑭","⑮","⑯",{"$f":"IF(COUNTIF(AQ11:AQ35,\"×\")>0,\"×\",IF(COUNTIF(AQ11:AQ35,\"△\")>0,\"△\",\"◎\"))","v":"◎"}]
[null,null,null,null,null,"歳",null,null,null,null,null,null,null,null,null,null,null,null,null,null,null,null,null,null,null,null,null,null,null,null,null,null,null,null,null,null,null,null,{"$f":"COUNTIF($H11:$AL11,\"⑬\")","v":0},{"$f":"COUNTIF($H11:$AL11,\"⑭\")","v":0},{"$f":"COUNTIF($H11:$AL11,\"⑮\")","v":0},{"$f":"COUNTIF($H11:$AL11,\"⑯\")","v":0},{"$f":"IF(SUM(AM11:AP11)<>COUNTA(H11:AL11),\"×\",IF(OR(AND(B11<>\"\",C11=\"\"),AND(B11<>\"\",E11=\"\"),AND(B11<>\"\",C11=\"受託\",D11=\"\"),AND(B11=\"\",SUM(AM11:AP11)>0)),\"△\",\"\"))","v":""}]
[null,null,null,null,null,"歳",null,null,null,null,null,null,null,null,null,null,null,null,null,null,null,null,null,null,null,null,null,null,null,null,null,null,null,null,null,null,null,null,{"$f":"COUNTIF($H12:$AL12,\"⑬\")","v":0},{"$f":"COUNTIF($H12:$AL12,\"⑭\")","v":0},{"$f":"COUNTIF($H12:$AL12,\"⑮\")","v":0},{"$f":"COUNTIF($H12:$AL12,\"⑯\")","v":0},{"$f":"IF(SUM(AM12:AP12)<>COUNTA(H12:AL12),\"×\",IF(OR(AND(B12<>\"\",C12=\"\"),AND(B12<>\"\",E12=\"\"),AND(B12<>\"\",C12=\"受託\",D12=\"\"),AND(B12=\"\",SUM(AM12:AP12)>0)),\"△\",\"\"))","v":""}]
[null,null,null,null,null,"歳",null,null,null,null,null,null,null,null,null,null,null,null,null,null,null,null,null,null,null,null,null,null,null,null,null,null,null,null,null,null,null,null,0,0,{"$f":"COUNTIF($H13:$AL13,\"⑮\")","v":0},0,""]
[null,null,null,null,null,"歳",null,null,null,null,null,null,null,null,null,null,null,null,null,null,null,null,null,null,null,null,null,null,null,null,null,null,null,null,null,null,null,null,0,0,0,0,""]
[null,null,null,null,null,"歳",null,null,null,null,null,null,null,null,null,null,null,null,null,null,null,null,null,null,null,null,null,null,null,null,null,null,null,null,null,null,null,null,0,0,0,0,""]
[null,null,null,null,null,"歳",null,null,null,null,null,null,null,null,null,null,null,null,null,null,null,null,null,null,null,null,null,null,null,null,null,null,null,null,null,null,null,null,{"$f":"COUNTIF($H16:$AL16,\"⑬\")","v":0},0,0,0,""]
[null,null,null,null,null,"歳",null,null,null,null,null,null,null,null,null,null,null,null,null,null,null,null,null,null,null,null,null,null,null,null,null,null,null,null,null,null,null,null,0,0,0,0,""]
[null,null,null,null,null,"歳",null,null,null,null,null,null,null,null,null,null,null,null,null,null,null,null,null,null,null,null,null,null,null,null,null,null,null,null,null,null,null,null,{"$f":"COUNTIF($H18:$AL18,\"⑬\")","v":0},0,0,0,""]
[null,null,null,null,null,"歳",null,null,null,null,null,null,null,null,null,null,null,null,null,null,null,null,null,null,null,null,null,null,null,null,null,null,null,null,null,null,null,null,0,0,0,0,""]
[null,null,null,null,null,"歳",null,null,null,null,null,null,null,null,null,null,null,null,null,null,null,null,null,null,null,null,null,null,null,null,null,null,null,null,null,null,null,null,0,0,0,0,""]
[null,null,null,null,null,"歳",null,null,null,null,null,null,null,null,null,null,null,null,null,null,null,null,null,null,null,null,null,null,null,null,null,null,null,null,null,null,null,null,0,0,0,0,""]
[null,null,null,null,null,"歳",null,null,null,null,null,null,null,null,null,null,null,null,null,null,null,null,null,null,null,null,null,null,null,null,null,null,null,null,null,null,null,null,0,0,0,0,""]
[null,null,null,null,null,"歳",null,null,null,null,null,null,null,null,null,null,null,null,null,null,null,null,null,null,null,null,null,null,null,null,null,null,null,null,null,null,null,null,0,0,0,0,""]
[null,null,null,null,null,"歳",null,null,null,null,null,null,null,null,null,null,null,null,null,null,null,null,null,null,null,null,null,null,null,null,null,null,null,null,null,null,null,null,0,0,0,0,""]
[null,null,null,null,null,"歳",null,null,null,null,null,null,null,null,null,null,null,null,null,null,null,null,null,null,null,null,null,null,null,null,null,null,null,null,null,null,null,null,0,0,{"$f":"COUNTIF($H25:$AL25,\"⑮\")","v":0},0,""]
[null,null,null,null,null,"歳",null,null,null,null,null,null,null,null,null,null,null,null,null,null,null,null,null,null,null,null,null,null,null,null,null,null,null,null,null,null,null,null,0,0,0,0,""]
[null,null,null,null,null,"歳",null,null,null,null,null,null,null,null,null,null,null,null,null,null,null,null,null,null,null,null,null,null,null,null,null,null,null,null,null,null,null,null,0,0,0,0,""]
[null,null,null,null,null,"歳",null,null,null,null,null,null,null,null,null,null,null,null,null,null,null,null,null,null,null,null,null,null,null,null,null,null,null,null,null,null,null,null,0,0,0,0,""]
[null,null,null,null,null,"歳",null,null,null,null,null,null,null,null,null,null,null,null,null,null,null,null,null,null,null,null,null,null,null,null,null,null,null,null,null,null,null,null,0,0,0,0,""]
[null,null,null,null,null,"歳",null,null,null,null,null,null,null,null,null,null,null,null,null,null,null,null,null,null,null,null,null,null,null,null,null,null,null,null,null,null,null,null,0,0,0,0,""]
[null,null,null,null,null,"歳",null,null,null,null,null,null,null,null,null,null,null,null,null,null,null,null,null,null,null,null,null,null,null,null,null,null,null,null,null,null,null,null,{"$f":"COUNTIF($H31:$AL31,\"⑬\")","v":0},{"$f":"COUNTIF($H31:$AL31,\"⑭\")","v":0},{"$f":"COUNTIF($H31:$AL31,\"⑮\")","v":0},{"$f":"COUNTIF($H31:$AL31,\"⑯\")","v":0},""]
[null,null,null,null,null,"歳",null,null,null,null,null,null,null,null,null,null,null,null,null,null,null,null,null,null,null,null,null,null,null,null,null,null,null,null,null,null,null,null,0,0,0,0,""]
[null,null,null,null,null,"歳",null,null,null,null,null,null,null,null,null,null,null,null,null,null,null,null,null,null,null,null,null,null,null,null,null,null,null,null,null,null,null,null,0,0,0,0,""]
[null,null,null,null,null,"歳",null,null,null,null,null,null,null,null,null,null,null,null,null,null,null,null,null,null,null,null,null,null,null,null,null,null,null,null,null,null,null,null,0,0,0,0,""]
[null,null,null,null,null,"歳",null,null,null,null,null,null,null,null,null,null,null,null,null,null,null,null,null,null,null,null,null,null,null,null,null,null,null,null,null,null,null,null,0,0,0,0,""]
[null,"預かり保育利用園児数合計（人）\n　【年齢別】",null,null,"満3","歳",null,{"$f":"COUNTIFS($E$11:$E$35,$E36,H$11:H$35,\"<>\")","v":0},0,0,0,0,0,0,0,0,0,{"$f":"COUNTIFS($E$11:$E$35,$E36,R$11:R$35,\"<>\")","v":0},0,0,0,0,0,0,0,0,0,{"$f":"COUNTIFS($E$11:$E$35,$E36,AB$11:AB$35,\"<>\")","v":0},0,0,0,0,0,0,0,0,0,0,{"$f":"SUM(AM11:AM35)","v":0},{"$f":"SUM(AN11:AN35)","v":0},{"$f":"SUM(AO11:AO35)","v":0},{"$f":"SUM(AP11:AP35)","v":0},{"$f":"SUM(AM36:AP36)","v":0}]
[null,null,null,null,3,"歳",null,0,0,0,0,0,0,0,0,0,0,0,0,0,0,0,0,0,0,0,0,0,0,0,0,0,0,0,0,0,0,0]
[null,null,null,null,4,"歳",null,0,0,0,0,0,0,0,0,0,0,0,0,0,0,0,0,0,0,0,0,0,0,0,0,0,0,0,0,0,0,0]
[null,null,null,null,5,"歳",null,0,0,0,0,0,0,0,0,0,0,0,0,0,0,0,0,0,0,0,0,0,0,0,0,0,0,0,0,0,0,0,null,"在園児の休日（計）\n⑬+⑭+⑮+⑯"]
[null,null,null,null,"計",null,null,{"$f":"SUM(H36:H39)","v":0},{"$f":"SUM(I36:I39)","v":0},0,0,0,0,0,0,0,0,0,0,0,0,0,0,0,0,0,0,0,0,0,0,0,0,0,0,0,0,0]
[null,null,null,null,null,null,null,null,null,null,null,null,null,null,null,null,null,null,null,null,null,null,null,null,null,null,null,null,null,null,null,null,null,null,null,null,null,null,null,{"$f":"SUM(AM36:AP36)","v":0}]
[null,"備考"]
[null,"注１　他の市町村で支給認定を受けた子どもや、市外に居住している子どもは神戸市の補助対象外です。居住市町村にお問い合わせしてください。",null,null,null,null,null,null,null,null,null,null,null,null,null,null,null,null,null,null,null,null,null,null,null,null,null,null,null,"利用時間区分表"]
[null,"注２　預かり保育利用時間区分には、利用した日の利用時間ごとに区分して右記の表のとおり番号を付け、その番号を記入してください。",null,null,null,null,null,null,null,null,null,null,null,null,null,null,null,null,null,null,null,null,null,null,null,null,null,null,null,"⑬","休日の８時間以内（～８ｈ）"]
[null,"注３　土・日・祝日に行事等で開園し、その振替として平日に休園した場合、行事等による開園日の実績を平日用の報告書に、振替休園の日の実績を休日用の報告書に計上してください。",null,null,null,null,null,null,null,null,null,null,null,null,null,null,null,null,null,null,null,null,null,null,null,null,null,null,null,"⑭","休日の８時間超１０時間未満"]
[null,"　　　※振替休園をしなかった場合、土・日・祝日に行事等で開園した日の実績を休日用の報告書に計上してください。",null,null,null,null,null,null,null,null,null,null,null,null,null,null,null,null,null,null,null,null,null,null,null,null,null,null,null,"⑮","休日の１０時間以上１１時間未満"]
[null,null,null,null,null,null,null,null,null,null,null,null,null,null,null,null,null,null,null,null,null,null,null,null,null,null,null,null,null,"⑯","休日の１１時間以上（１１ｈ～）"]

{"sheet":"④実績調書 (非在園児用)","index":5,"n_rows":36,"n_cols":43,"rows_kept":36,"cut":false,"hidden":false,"merged":[[35,30,35,38],[6,1,8,1],[6,2,8,2],[6,4,8,5],[6,6,6,37],[28,4,28,5],[6,38,7,41],[31,29,31,38],[32,30,32,38],[33,30,33,38],[34,30,34,38],[27,39,28,41],[29,39,29,41],[6,3,8,3],[24,1,28,3],[0,1,0,39],[2,15,2,16],[2,18,2,19],[4,7,4,9],[4,11,4,13],[4,31,4,41]]}
[null,"預かり保育補助事業（幼稚園型一時預かり事業）実績調書【非在園児用】"]
[]
[null,"→ボタン押下後、指定する行数分を下から2行目以降に追加します",null,null,null,null,null,null,null,null,null,null,null,null,"《令和　",{"$f":"年","v":6},null,"年",{"$f":"月","v":0},null,"月分》"]
[]
[null,null,null,null,null,null,"【標準教育時間 ",{"$f":"開始時間","v":"00:00:00"},null,null,"～",{"$f":"終了時間","v":"00:00:00"},null,null,"】",null,null,null,null,null,null,null,null,null,null,null,null,"幼稚園又は認定こども園名：　　　　　　　　　　　　　　　　　　　　　　",null,null,null,{"$f":"施設名","v":0}]
[]
[null,"園児名","市内児・受託児の別\n（※注１）","受託児\nの場合、\n委託元\n市町名","年齢",null,"預　　か　　り　　保　　育　　利　　用　　時　　間　　区　　分　　（※注２）",null,null,null,null,null,null,null,null,null,null,null,null,null,null,null,null,null,null,null,null,null,null,null,null,null,null,null,null,null,null,null,"利用日数合計"]
[null,null,null,null,null,null,"日",1,2,3,4,5,6,7,8,9,10,11,12,13,14,15,16,17,18,19,20,21,22,23,24,25,26,27,28,{"$f":"'①実績調書（在園児用の平日）'!AJ8","v":""},{"$f":"'①実績調書（在園児用の平日）'!AK8","v":""},{"$f":"'①実績調書（在園児用の平日）'!AL8","v":""}]
[null,null,null,null,null,null,"曜日",{"$f":"'①実績調書（在園児用の平日）'!H9","v":"金"},{"$f":"'①実績調書（在園児用の平日）'!I9","v":"土"},{"$f":"'①実績調書（在園児用の平日）'!J9","v":"日"},{"$f":"'①実績調書（在園児用の平日）'!K9","v":"月"},{"$f":"'①実績調書（在園児用の平日）'!L9","v":"火"},{"$f":"'①実績調書（在園児用の平日）'!M9","v":"水"},{"$f":"'①実績調書（在園児用の平日）'!N9","v":"木"},{"$f":"'①実績調書（在園児用の平日）'!O9","v":"金"},{"$f":"'①実績調書（在園児用の平日）'!P9","v":"土"},{"$f":"'①実績調書（在園児用の平日）'!Q9","v":"日"},{"$f":"'①実績調書（在園児用の平日）'!R9","v":"月"},{"$f":"'①実績調書（在園児用の平日）'!S9","v":"火"},{"$f":"'①実績調書（在園児用の平日）'!T9","v":"水"},{"$f":"'①実績調書（在園児用の平日）'!U9","v":"木"},{"$f":"'①実績調書（在園児用の平日）'!V9","v":"金"},{"$f":"'①実績調書（在園児用の平日）'!W9","v":"土"},{"$f":"'①実績調書（在園児用の平日）'!X9","v":"日"},{"$f":"'①実績調書（在園児用の平日）'!Y9","v":"月"},{"$f":"'①実績調書（在園児用の平日）'!Z9","v":"火"},{"$f":"'①実績調書（在園児用の平日）'!AA9","v":"水"},{"$f":"'①実績調書（在園児用の平日）'!AB9","v":"木"},{"$f":"'①実績調書（在園児用の平日）'!AC9","v":"金"},{"$f":"'①実績調書（在園児用の平日）'!AD9","v":"土"},{"$f":"'①実績調書（在園児用の平日）'!AE9","v":"日"},{"$f":"'①実績調書（在園児用の平日）'!AF9","v":"月"},{"$f":"'①実績調書（在園児用の平日）'!AG9","v":"火"},{"$f":"'①実績調書（在園児用の平日）'!AH9","v":"水"},{"$f":"'①実績調書（在園児用の平日）'!AI9","v":"木"},{"$f":"'①実績調書（在園児用の平日）'!AJ9","v":""},{"$f":"'①実績調書（在園児用の平日）'!AK9","v":""},{"$f":"'①実績調書（在園児用の平日）'!AL9","v":""},"⑰","⑱","⑲","⑳",{"$f":"IF(COUNTIF(AQ10:AQ24,\"×\")>0,\"×\",IF(COUNTIF(AQ10:AQ24,\"△\")>0,\"△\",\"◎\"))","v":"◎"}]
[null,null,null,null,null,"歳",null,null,null,null,null,null,null,null,null,null,null,null,null,null,null,null,null,null,null,null,null,null,null,null,null,null,null,null,null,null,null,null,{"$f":"COUNTIF($H10:$AL10,\"⑰\")","v":0},{"$f":"COUNTIF($H10:$AL10,\"⑱\")","v":0},{"$f":"COUNTIF($H10:$AL10,\"⑲\")","v":0},{"$f":"COUNTIF($H10:$AL10,\"⑳\")","v":0},{"$f":"IF(SUM(AM10:AP10)<>COUNTA(H10:AL10),\"×\",IF(OR(AND(B10<>\"\",C10=\"\"),AND(B10<>\"\",E10=\"\"),AND(B10<>\"\",C10=\"受託\",D10=\"\"),AND(B10=\"\",SUM(AM10:AP10)>0)),\"△\",\"\"))","v":""}]
[null,null,null,null,null,"歳",null,null,null,null,null,null,null,null,null,null,null,null,null,null,null,null,null,null,null,null,null,null,null,null,null,null,null,null,null,null,null,null,{"$f":"COUNTIF($H11:$AL11,\"⑰\")","v":0},{"$f":"COUNTIF($H11:$AL11,\"⑱\")","v":0},{"$f":"COUNTIF($H11:$AL11,\"⑲\")","v":0},{"$f":"COUNTIF($H11:$AL11,\"⑳\")","v":0},{"$f":"IF(SUM(AM11:AP11)<>COUNTA(H11:AL11),\"×\",IF(OR(AND(B11<>\"\",C11=\"\"),AND(B11<>\"\",E11=\"\"),AND(B11<>\"\",C11=\"受託\",D11=\"\"),AND(B11=\"\",SUM(AM11:AP11)>0)),\"△\",\"\"))","v":""}]
[null,null,null,null,null,"歳",null,null,null,null,null,null,null,null,null,null,null,null,null,null,null,null,null,null,null,null,null,null,null,null,null,null,null,null,null,null,null,null,0,0,0,0,""]
[null,null,null,null,null,"歳",null,null,null,null,null,null,null,null,null,null,null,null,null,null,null,null,null,null,null,null,null,null,null,null,null,null,null,null,null,null,null,null,0,0,0,0,""]
[null,null,null,null,null,"歳",null,null,null,null,null,null,null,null,null,null,null,null,null,null,null,null,null,null,null,null,null,null,null,null,null,null,null,null,null,null,null,null,0,0,0,0,""]
[null,null,null,null,null,"歳",null,null,null,null,null,null,null,null,null,null,null,null,null,null,null,null,null,null,null,null,null,null,null,null,null,null,null,null,null,null,null,null,0,0,0,0,""]
[null,null,null,null,null,"歳",null,null,null,null,null,null,null,null,null,null,null,null,null,null,null,null,null,null,null,null,null,null,null,null,null,null,null,null,null,null,null,null,0,0,0,0,""]
[null,null,null,null,null,"歳",null,null,null,null,null,null,null,null,null,null,null,null,null,null,null,null,null,null,null,null,null,null,null,null,null,null,null,null,null,null,null,null,0,0,0,0,""]
[null,null,null,null,null,"歳",null,null,null,null,null,null,null,null,null,null,null,null,null,null,null,null,null,null,null,null,null,null,null,null,null,null,null,null,null,null,null,null,0,0,0,0,""]
[null,null,null,null,null,"歳",null,null,null,null,null,null,null,null,null,null,null,null,null,null,null,null,null,null,null,null,null,null,null,null,null,null,null,null,null,null,null,null,0,0,0,0,""]
[null,null,null,null,null,"歳",null,null,null,null,null,null,null,null,null,null,null,null,null,null,null,null,null,null,null,null,null,null,null,null,null,null,null,null,null,null,null,null,0,0,0,0,""]
[null,null,null,null,null,"歳",null,null,null,null,null,null,null,null,null,null,null,null,null,null,null,null,null,null,null,null,null,null,null,null,null,null,null,null,null,null,null,null,0,0,0,0,""]
[null,null,null,null,null,"歳",null,null,null,null,null,null,null,null,null,null,null,null,null,null,null,null,null,null,null,null,null,null,null,null,null,null,null,null,null,null,null,null,0,0,0,0,""]
[null,null,null,null,null,"歳",null,null,null,null,null,null,null,null,null,null,null,null,null,null,null,null,null,null,null,null,null,null,null,null,null,null,null,null,null,null,null,null,0,0,0,0,""]
[null,null,null,null,null,"歳",null,null,null,null,null,null,null,null,null,null,null,null,null,null,null,null,null,null,null,null,null,null,null,null,null,null,null,null,null,null,null,null,0,0,0,0,""]
[null,"預かり保育利用園児数合計（人）\n　【年齢別】",null,null,"満3","歳",null,{"$f":"COUNTIFS($E$10:$E$24,$E25,H$10:H$24,\"<>\")","v":0},{"$f":"COUNTIFS($E$10:$E$24,$E25,I$10:I$24,\"<>\")","v":0},0,0,0,0,{"$f":"COUNTIFS($E$10:$E$24,$E25,N$10:N$24,\"<>\")","v":0},0,0,0,0,0,0,0,0,0,0,0,0,0,0,0,0,0,0,0,0,0,0,0,0,{"$f":"SUM(AM10:AM24)","v":0},{"$f":"SUM(AN10:AN24)","v":0},{"$f":"SUM(AO10:AO24)","v":0},0,{"$f":"SUM(AM25:AP25)","v":0}]
[null,null,null,null,3,"歳",null,{"$f":"COUNTIFS($E$10:$E$24,$E26,H$10:H$24,\"<>\")","v":0},0,0,0,0,0,{"$f":"COUNTIFS($E$10:$E$24,$E26,N$10:N$24,\"<>\")","v":0},0,0,0,0,0,0,0,0,0,0,0,0,0,0,0,0,0,0,0,0,0,0,0,0]
[null,null,null,null,4,"歳",null,0,0,0,0,0,0,0,0,0,0,0,0,0,0,0,0,0,0,0,0,0,0,0,0,0,0,0,0,0,0,0]
[null,null,null,null,5,"歳",null,0,0,0,0,0,0,0,0,0,0,0,0,0,0,0,0,0,0,0,0,0,0,0,0,0,0,0,0,0,0,0,null,"非在園児（計）\n⑰+⑱+⑲+⑳"]
[null,null,null,null,"計",null,null,{"$f":"SUM(H25:H28)","v":0},{"$f":"SUM(I25:I28)","v":0},0,0,0,0,0,0,0,0,0,0,0,0,0,0,0,0,0,0,0,0,0,0,0,0,0,0,0,0,0]
[null,null,null,null,null,null,null,null,null,null,null,null,null,null,null,null,null,null,null,null,null,null,null,null,null,null,null,null,null,null,null,null,null,null,null,null,null,null,null,{"$f":"SUM(AM25:AP25)","v":0}]
[null,"備考"]
[null,"注１　他の市町村で支給認定を受けた子どもや、市外に居住している子どもは神戸市の補助対象外です。居住市町村にお問い合わせしてください。",null,null,null,null,null,null,null,null,null,null,null,null,null,null,null,null,null,null,null,null,null,null,null,null,null,null,null,"利用時間区分表"]
[null,"注２　預かり保育利用時間区分には、利用した日の利用時間ごとに区分して右記の表のとおり番号を付け、その番号を記入してください。",null,null,null,null,null,null,null,null,null,null,null,null,null,null,null,null,null,null,null,null,null,null,null,null,null,null,null,"⑰","非在園児８時間以内（～８ｈ）"]
[null,null,null,null,null,null,null,null,null,null,null,null,null,null,null,null,null,null,null,null,null,null,null,null,null,null,null,null,null,"⑱","非在園児８時間超１０時間未満"]
[null,null,null,null,null,null,null,null,null,null,null,null,null,null,null,null,null,null,null,null,null,null,null,null,null,null,null,null,null,"⑲","非在園児１０時間以上から１１時間未満"]
[null,null,null,null,null,null,null,null,null,null,null,null,null,null,null,null,null,null,null,null,null,null,null,null,null,null,null,null,null,"⑳","非在園児１１時間以上（１１ｈ～）"]

{"sheet":"⑤実績調書 (特別支援児童用)","index":6,"n_rows":35,"n_cols":40,"rows_kept":35,"cut":false,"hidden":false,"merged":[[34,30,34,38],[24,1,28,3],[28,4,28,5],[33,29,33,38],[30,36,30,38],[31,36,31,38],[6,38,7,38],[0,1,0,38],[2,15,2,16],[2,18,2,19],[4,7,4,9],[4,11,4,13],[4,31,4,38],[6,1,8,1],[6,2,8,2],[6,3,8,3],[6,4,8,5],[6,6,6,37]]}
[null,"預かり保育補助事業（幼稚園型一時預かり事業）実績調書【特別支援児童用】"]
[]
[null,"→ボタン押下後、指定する行数分を下から2行目以降に追加します",null,null,null,null,null,null,null,null,null,null,null,null,"《令和　",{"$f":"年","v":6},null,"年",{"$f":"月","v":0},null,"月分》"]
[]
[null,null,null,null,null,null,"【標準教育時間 ",{"$f":"開始時間","v":"00:00:00"},null,null,"～",{"$f":"終了時間","v":"00:00:00"},null,null,"】",null,null,null,null,null,null,null,null,null,null,null,null,"幼稚園又は認定こども園名：　　　　　　　　　　　　　　　　　　　　　　",null,null,null,{"$f":"施設名","v":0}]
[]
[null,"園児名","市内児・受託児の別\n（※注１）","受託児\nの場合、\n委託元\n市町名","年齢",null,"預　　か　　り　　保　　育　　利　　用　　時　　間　　区　　分　　（※注２）",null,null,null,null,null,null,null,null,null,null,null,null,null,null,null,null,null,null,null,null,null,null,null,null,null,null,null,null,null,null,null,"利用日数合計"]
[null,null,null,null,null,null,"日",1,2,3,4,5,6,7,8,9,10,11,12,13,14,15,16,17,18,19,20,21,22,23,24,25,26,27,28,{"$f":"'①実績調書（在園児用の平日）'!AJ8","v":""},{"$f":"'①実績調書（在園児用の平日）'!AK8","v":""},{"$f":"'①実績調書（在園児用の平日）'!AL8","v":""}]
[null,null,null,null,null,null,"曜日",{"$f":"'①実績調書（在園児用の平日）'!H9","v":"金"},{"$f":"'①実績調書（在園児用の平日）'!I9","v":"土"},{"$f":"'①実績調書（在園児用の平日）'!J9","v":"日"},{"$f":"'①実績調書（在園児用の平日）'!K9","v":"月"},{"$f":"'①実績調書（在園児用の平日）'!L9","v":"火"},{"$f":"'①実績調書（在園児用の平日）'!M9","v":"水"},{"$f":"'①実績調書（在園児用の平日）'!N9","v":"木"},{"$f":"'①実績調書（在園児用の平日）'!O9","v":"金"},{"$f":"'①実績調書（在園児用の平日）'!P9","v":"土"},{"$f":"'①実績調書（在園児用の平日）'!Q9","v":"日"},{"$f":"'①実績調書（在園児用の平日）'!R9","v":"月"},{"$f":"'①実績調書（在園児用の平日）'!S9","v":"火"},{"$f":"'①実績調書（在園児用の平日）'!T9","v":"水"},{"$f":"'①実績調書（在園児用の平日）'!U9","v":"木"},{"$f":"'①実績調書（在園児用の平日）'!V9","v":"金"},{"$f":"'①実績調書（在園児用の平日）'!W9","v":"土"},{"$f":"'①実績調書（在園児用の平日）'!X9","v":"日"},{"$f":"'①実績調書（在園児用の平日）'!Y9","v":"月"},{"$f":"'①実績調書（在園児用の平日）'!Z9","v":"火"},{"$f":"'①実績調書（在園児用の平日）'!AA9","v":"水"},{"$f":"'①実績調書（在園児用の平日）'!AB9","v":"木"},{"$f":"'①実績調書（在園児用の平日）'!AC9","v":"金"},{"$f":"'①実績調書（在園児用の平日）'!AD9","v":"土"},{"$f":"'①実績調書（在園児用の平日）'!AE9","v":"日"},{"$f":"'①実績調書（在園児用の平日）'!AF9","v":"月"},{"$f":"'①実績調書（在園児用の平日）'!AG9","v":"火"},{"$f":"'①実績調書（在園児用の平日）'!AH9","v":"水"},{"$f":"'①実績調書（在園児用の平日）'!AI9","v":"木"},{"$f":"'①実績調書（在園児用の平日）'!AJ9","v":""},{"$f":"'①実績調書（在園児用の平日）'!AK9","v":""},{"$f":"'①実績調書（在園児用の平日）'!AL9","v":""},"㉑",{"$f":"IF(COUNTIF(AN10:AN24,\"×\")>0,\"×\",IF(COUNTIF(AN10:AN24,\"△\")>0,\"△\",\"◎\"))","v":"◎"}]
[null,null,null,null,null,"歳",null,null,null,null,null,null,null,null,null,null,null,null,null,null,null,null,null,null,null,null,null,null,null,null,null,null,null,null,null,null,null,null,{"$f":"COUNTIF($H10:$AL10,\"㉑\")","v":0},{"$f":"IF(AM10<>COUNTA(H10:AL10),\"×\",IF(OR(AND(B10<>\"\",C10=\"\"),AND(B10<>\"\",E10=\"\"),AND(B10<>\"\",C10=\"受託\",D10=\"\"),AND(B10=\"\",AM10>0)),\"△\",\"\"))","v":""}]
[null,null,null,null,null,"歳",null,null,null,null,null,null,null,null,null,null,null,null,null,null,null,null,null,null,null,null,null,null,null,null,null,null,null,null,null,null,null,null,{"$f":"COUNTIF($H11:$AL11,\"㉑\")","v":0},{"$f":"IF(AM11<>COUNTA(H11:AL11),\"×\",IF(OR(AND(B11<>\"\",C11=\"\"),AND(B11<>\"\",E11=\"\"),AND(B11<>\"\",C11=\"受託\",D11=\"\"),AND(B11=\"\",AM11>0)),\"△\",\"\"))","v":""}]
[null,null,null,null,null,"歳",null,null,null,null,null,null,null,null,null,null,null,null,null,null,null,null,null,null,null,null,null,null,null,null,null,null,null,null,null,null,null,null,0,""]
[null,null,null,null,null,"歳",null,null,null,null,null,null,null,null,null,null,null,null,null,null,null,null,null,null,null,null,null,null,null,null,null,null,null,null,null,null,null,null,0,""]
[null,null,null,null,null,"歳",null,null,null,null,null,null,null,null,null,null,null,null,null,null,null,null,null,null,null,null,null,null,null,null,null,null,null,null,null,null,null,null,0,""]
[null,null,null,null,null,"歳",null,null,null,null,null,null,null,null,null,null,null,null,null,null,null,null,null,null,null,null,null,null,null,null,null,null,null,null,null,null,null,null,0,""]
[null,null,null,null,null,"歳",null,null,null,null,null,null,null,null,null,null,null,null,null,null,null,null,null,null,null,null,null,null,null,null,null,null,null,null,null,null,null,null,0,""]
[null,null,null,null,null,"歳",null,null,null,null,null,null,null,null,null,null,null,null,null,null,null,null,null,null,null,null,null,null,null,null,null,null,null,null,null,null,null,null,0,""]
[null,null,null,null,null,"歳",null,null,null,null,null,null,null,null,null,null,null,null,null,null,null,null,null,null,null,null,null,null,null,null,null,null,null,null,null,null,null,null,0,""]
[null,null,null,null,null,"歳",null,null,null,null,null,null,null,null,null,null,null,null,null,null,null,null,null,null,null,null,null,null,null,null,null,null,null,null,null,null,null,null,0,""]
[null,null,null,null,null,"歳",null,null,null,null,null,null,null,null,null,null,null,null,null,null,null,null,null,null,null,null,null,null,null,null,null,null,null,null,null,null,null,null,0,""]
[null,null,null,null,null,"歳",null,null,null,null,null,null,null,null,null,null,null,null,null,null,null,null,null,null,null,null,null,null,null,null,null,null,null,null,null,null,null,null,0,""]
[null,null,null,null,null,"歳",null,null,null,null,null,null,null,null,null,null,null,null,null,null,null,null,null,null,null,null,null,null,null,null,null,null,null,null,null,null,null,null,0,""]
[null,null,null,null,null,"歳",null,null,null,null,null,null,null,null,null,null,null,null,null,null,null,null,null,null,null,null,null,null,null,null,null,null,null,null,null,null,null,null,0,""]
[null,null,null,null,null,"歳",null,null,null,null,null,null,null,null,null,null,null,null,null,null,null,null,null,null,null,null,null,null,null,null,null,null,null,null,null,null,null,null,0,""]
[null,"預かり保育利用園児数合計（人）\n　【年齢別】",null,null,"満3","歳",null,{"$f":"COUNTIFS($E$10:$E$24,$E25,H$10:H$24,\"<>\")","v":0},{"$f":"COUNTIFS($E$10:$E$24,$E25,I$10:I$24,\"<>\")","v":0},0,0,0,0,{"$f":"COUNTIFS($E$10:$E$24,$E25,N$10:N$24,\"<>\")","v":0},0,0,0,0,0,0,0,0,0,0,0,0,0,0,0,0,0,0,0,0,0,0,0,0,{"$f":"SUM(AM10:AM24)","v":0}]
[null,null,null,null,3,"歳",null,{"$f":"COUNTIFS($E$10:$E$24,$E26,H$10:H$24,\"<>\")","v":0},0,0,0,0,0,{"$f":"COUNTIFS($E$10:$E$24,$E26,N$10:N$24,\"<>\")","v":0},0,0,0,0,0,0,0,0,0,0,0,0,0,0,0,0,0,0,0,0,0,0,0,0]
[null,null,null,null,4,"歳",null,0,0,0,0,0,0,0,0,0,0,0,0,0,0,0,0,0,0,0,0,0,0,0,0,0,0,0,0,0,0,0]
[null,null,null,null,5,"歳",null,0,0,0,0,0,0,0,0,0,0,0,0,0,0,0,0,0,0,0,0,0,0,0,0,0,0,0,0,0,0,0]
[null,null,null,null,"計",null,null,{"$f":"SUM(H25:H28)","v":0},{"$f":"SUM(I25:I28)","v":0},0,0,0,0,0,0,0,0,0,0,0,0,0,0,0,0,0,0,0,0,0,0,0,0,0,0,0,0,0]
[]
[null,null,null,null,null,null,null,null,null,null,null,null,null,null,null,null,null,null,null,null,null,null,null,null,null,null,null,null,null,null,null,null,null,null,null,null,"特別支援児童計㉑"]
[null,null,null,null,null,null,null,null,null,null,null,null,null,null,null,null,null,null,null,null,null,null,null,null,null,null,null,null,null,null,null,null,null,null,null,null,{"$f":"AM25","v":0}]
[null,"備考"]
[null,"注１　他の市町村で支給認定を受けた子どもや、市外に居住している子どもは神戸市の補助対象外です。居住市町村にお問い合わせしてください。",null,null,null,null,null,null,null,null,null,null,null,null,null,null,null,null,null,null,null,null,null,null,null,null,null,null,null,"利用時間区分表"]
[null,"注２　預かり保育利用時間区分には、利用した日の利用時間ごとに区分して右記の表のとおり番号を付け、その番号を記入してください。",null,null,null,null,null,null,null,null,null,null,null,null,null,null,null,null,null,null,null,null,null,null,null,null,null,null,null,"㉑","特別な支援を要する児童　利用1回あたり"]

{"sheet":"⑥報告書","index":7,"n_rows":38,"n_cols":19,"rows_kept":38,"cut":false,"hidden":false,"merged":[[4,12,4,18],[6,10,6,18],[15,11,15,16],[21,3,21,7],[22,3,22,7],[12,3,12,7],[13,3,13,7],[14,3,14,7],[22,11,22,16],[16,12,16,16],[17,12,17,16],[18,12,18,16],[30,2,30,6],[0,2,0,15],[11,2,11,7],[15,2,15,7],[16,3,16,7],[20,3,20,7],[17,3,17,7],[18,3,18,7],[19,2,19,7],[20,11,20,16],[2,7,2,8],[2,10,2,11],[11,11,11,16],[12,12,12,16],[13,12,13,16],[14,12,14,16],[25,16,25,18],[26,2,26,6],[27,2,27,6],[28,2,28,6],[29,2,29,6],[26,7,26,9],[27,7,27,9],[28,7,28,9],[29,7,29,9],[25,2,25,6],[25,7,25,9],[25,11,25,15],[29,11,29,15],[29,16,29,18],[31,2,31,6],[32,2,32,6],[33,2,33,6],[34,2,34,6],[35,2,35,6],[30,7,30,9],[31,7,31,9],[32,7,32,9],[33,7,33,9],[34,7,34,9],[30,11,30,15],[30,16,30,18],[31,11,31,15],[31,16,31,18],[26,11,26,15],[26,16,26,18],[27,11,27,15],[27,16,27,18],[28,11,28,15],[28,16,28,18],[35,11,35,15],[35,16,35,18],[36,1,36,15],[32,16,32,18],[33,11,33,15],[33,16,33,18],[34,11,34,15],[34,16,34,18],[35,7,35,9],[36,16,36,18],[32,11,32,15]]}
[null,null,"預かり保育補助事業（一時預かり（幼稚園型））実績報告書"]
[]
[null,null,null,null,null,null,"《令和 ",{"$f":"IF('①実績調書（在園児用の平日）'!P3=\"\",\"\",'①実績調書（在園児用の平日）'!P3)","v":6},null,"年",{"$f":"IF('①実績調書（在園児用の平日）'!S3=\"\",\"\",'①実績調書（在園児用の平日）'!S3)","v":0},null,"月分》"]
["神戸市長　　あて"]
[null,null,null,null,null,null,null,null,null,null,null,"幼稚園又は認定こども園名：　",{"$f":"IF('①実績調書（在園児用の平日）'!AF5=\"\",\"\",'①実績調書（在園児用の平日）'!AF5)","v":0}]
[]
[]
[]
[null,"下記のとおり報告します。"]
[]
[]
[null,null,"①+②＋③＋④在園児の平日",null,null,null,null,null,{"$f":"'①実績調書（在園児用の平日）'!AM35+I13+I14+I15","v":0},"人",null,"⑬＋⑭＋⑮＋⑯在園児の休日",null,null,null,null,null,{"$f":"'③実績調書（在園児用の休日）'!AM36+R13+R14+R15","v":0},"人"]
[null,null,null,"②平日の教育標準時間外の４時間超６時間未満",null,null,null,null,{"$f":"'①実績調書（在園児用の平日）'!AN35","v":0},"人",null,null,"⑭休日の８時間超１０時間未満",null,null,null,null,{"$f":"'③実績調書（在園児用の休日）'!AN36","v":0},"人"]
[null,null,null,"③平日の教育標準時間外の６時間以上７時間未満",null,null,null,null,{"$f":"'①実績調書（在園児用の平日）'!AO35","v":0},"人",null,null,"⑮休日の１０時間以上１１時間未満",null,null,null,null,{"$f":"'③実績調書（在園児用の休日）'!AO36","v":0},"人"]
[null,null,null,"④平日の教育標準時間外の７時間以上",null,null,null,null,{"$f":"'①実績調書（在園児用の平日）'!AP35","v":0},"人",null,null,"⑯休日の１１時間以上（１１ｈ～）",null,null,null,null,{"$f":"'③実績調書（在園児用の休日）'!AP36","v":0},"人"]
[null,null,"⑤＋⑥＋⑦＋⑧\n在園児の長期休業日（4時間）",null,null,null,null,null,{"$f":"'②実績調書（在園児用の長期休業日）'!AM35+I17+I18+I19","v":0},"人",null,"⑰＋⑱＋⑲＋⑳非在園児",null,null,null,null,null,{"$f":"'④実績調書 (非在園児用)'!AM25+R17+R18+R19","v":0},"人"]
[null,null,null,"⑥長期休業日の４時間超６時間未満",null,null,null,null,{"$f":"'②実績調書（在園児用の長期休業日）'!AN35","v":0},"人",null,null,"⑱非在園児８時間超１０時間未満",null,null,null,null,{"$f":"'④実績調書 (非在園児用)'!AN25","v":0},"人"]
[null,null,null,"⑦長期休業日の６時間以上７時間未満",null,null,null,null,{"$f":"'②実績調書（在園児用の長期休業日）'!AO35","v":0},"人",null,null,"⑲非在園児１０時間以上から１１時間未満",null,null,null,null,{"$f":"'④実績調書 (非在園児用)'!AO25","v":0},"人"]
[null,null,null,"⑧長期休業日の７時間以上8時間未満",null,null,null,null,{"$f":"'②実績調書（在園児用の長期休業日）'!AP35","v":0},"人",null,null,"⑳非在園児１１時間以上（１１ｈ～）",null,null,null,null,{"$f":"'④実績調書 (非在園児用)'!AP25","v":0},"人"]
[null,null,"⑨＋⑩＋⑪＋⑫\n在園児の長期休業日（8時間）",null,null,null,null,null,{"$f":"'②実績調書（在園児用の長期休業日）'!AQ35+I21+I22+I23","v":0},"人"]
[null,null,null,"⑩長期休業日の８時間超１０時間未満",null,null,null,null,{"$f":"'②実績調書（在園児用の長期休業日）'!AR35","v":0},"人",null,"㉑特別支援児童",null,null,null,null,null,{"$f":"'⑤実績調書 (特別支援児童用)'!AM25","v":0},"人"]
[null,null,null,"⑪長期休業日の１０時間以上１１時間未満",null,null,null,null,{"$f":"'②実績調書（在園児用の長期休業日）'!AS35","v":0},"人"]
[null,null,null,"⑫長期休業日の１１時間以上（１１ｈ～）",null,null,null,null,{"$f":"'②実績調書（在園児用の長期休業日）'!AT35","v":0},"人",null,"合計",null,null,null,null,null,{"$f":"I12+I16+I20+R12+R16+R21","v":0},"人"]
[]
[null,null,null,null,null,null,null,null,null,null,null,null,null,null,null,null,null,{"$f":"IF(AND($R$23>0,OR(COUNTA($C$27:$G$36,$L$27:$P$36)=0,$Q$37=0)),\"×\",\"◎\")","v":"◎"}]
[null,null,"一時預かり事業（幼稚園型）利用\n児童を処遇する職員の氏名",null,null,null,null,"利用児童の\n処遇にあたった\n時間",null,null,null,"一時預かり事業（幼稚園型）利用\n児童を処遇する職員の氏名",null,null,null,null,"利用児童の\n処遇にあたった\n時間"]
[null,"①",null,null,null,null,null,null,null,null,"⑪"]
[null,"②",null,null,null,null,null,null,null,null,"⑫"]
[null,"③",null,null,null,null,null,null,null,null,"⑬"]
[null,"④",null,null,null,null,null,null,null,null,"⑭"]
[null,"⑤",null,null,null,null,null,null,null,null,"⑮"]
[null,"⑥",null,null,null,null,null,null,null,null,"⑯"]
[null,"⑦",null,null,null,null,null,null,null,null,"⑰"]
[null,"⑧",null,null,null,null,null,null,null,null,"⑱"]
[null,"⑨",null,null,null,null,null,null,null,null,"⑲"]
[null,"⑩",null,null,null,null,null,null,null,null,"⑳"]
[null,"合計　①～⑳",null,null,null,null,null,null,null,null,null,null,null,null,null,null,{"$f":"SUM(H27:J36,Q27:S36)","v":0}]
[null,"※配置基準上の職員数を超えて加配している方となります。"]

{"sheet":"祝日","index":8,"n_rows":22,"n_cols":10,"rows_kept":22,"cut":false,"hidden":true,"merged":[]}
["年","祝日","祝日名","基準日","曜日","月","日/週","固/変","振替日","備考"]
[{"$f":"2018+'①実績調書（在園児用の平日）'!P3","v":2024},{"$f":"IF(I2=\"\",D2,I2)","v":"2024-01-01"},"元日",{"$f":"IF(H2=\"固\",DATE($A$2,F2,G2),IF(H2=\"変\",DATE($A$2,F2,G2*7)-WEEKDAY(DATE($A$2,F2,G2*7),3),\"\"))","v":"2024-01-01"},{"$f":"TEXT(D2,\"aaa\")","v":"月"},1,1,"固",{"$f":"IF(E2=\"日\",LOOKUP(1,0/(D2+ROW($1:$7)-1=D2:D8),D2:D8)+1,IF(D2+2=D3,D2+1,\"\"))","v":""}]
[null,"2024-01-08","成人の日",{"$f":"IF(H3=\"固\",DATE($A$2,F3,G3),IF(H3=\"変\",DATE($A$2,F3,G3*7)-WEEKDAY(DATE($A$2,F3,G3*7),3),\"\"))","v":"2024-01-08"},{"$f":"TEXT(D3,\"aaa\")","v":"月"},1,2,"変",{"$f":"IF(E3=\"日\",LOOKUP(1,0/(D3+ROW($1:$7)-1=D3:D9),D3:D9)+1,IF(D3+2=D4,D3+1,\"\"))","v":""},"1月第2月曜"]
[null,"2024-02-12","建国記念日","2024-02-11",{"$f":"TEXT(D4,\"aaa\")","v":"日"},2,11,"固",{"$f":"IF(E4=\"日\",LOOKUP(1,0/(D4+ROW($1:$7)-1=D4:D10),D4:D10)+1,IF(D4+2=D6,D4+1,\"\"))","v":"2024-02-12"}]
[null,"2024-02-23","天皇誕生日","2024-02-23","金",2,23,"固",{"$f":"IF(E5=\"日\",LOOKUP(1,0/(D5+ROW($1:$7)-1=D5:D11),D5:D11)+1,IF(D5+2=D7,D5+1,\"\"))","v":""}]
[null,"2024-03-20","春分の日",{"$f":"IF(H6=\"固\",DATE($A$2,F6,G6),IF(H6=\"変\",DATE($A$2,F6,G6*7)-WEEKDAY(DATE($A$2,F6,G6*7),3),\"\"))","v":"2024-03-20"},{"$f":"TEXT(D6,\"aaa\")","v":"水"},3,{"$f":"INT(20.8431+0.242194*($A$2-1980)-INT(($A$2-1980)/4))","v":20},"固",{"$f":"IF(E6=\"日\",LOOKUP(1,0/(D6+ROW($1:$7)-1=D6:D11),D6:D11)+1,IF(D6+2=D7,D6+1,\"\"))","v":""},"2099年までの対応"]
[null,"2024-04-29","昭和の日","2024-04-29","月",4,29,"固",""]
[null,"2024-05-03","憲法記念日","2024-05-03","金",5,3,"固",""]
[null,"2024-05-04","みどりの日","2024-05-04","土",5,4,"固",""]
[null,"2024-05-06","こどもの日","2024-05-05","日",5,5,"固","2024-05-06"]
[null,"2024-07-15","海の日",{"$f":"IF(H11=\"固\",DATE($A$2,F11,G11),IF(H11=\"変\",DATE($A$2,F11,G11*7)-WEEKDAY(DATE($A$2,F11,G11*7),3),\"\"))","v":"2024-07-15"},{"$f":"TEXT(D11,\"aaa\")","v":"月"},7,3,"変","","7月第3月曜"]
[null,"2024-08-12","山の日","2024-08-11","日",8,11,"固",{"$f":"IF(E12=\"日\",LOOKUP(1,0/(D12+ROW($1:$7)-1=D12:D22),D12:D22)+1,IF(D12+2=D13,D12+1,\"\"))","v":"2024-08-12"}]
[null,"2024-09-16","敬老の日",{"$f":"IF(H13=\"固\",DATE($A$2,F13,G13),IF(H13=\"変\",DATE($A$2,F13,G13*7)-WEEKDAY(DATE($A$2,F13,G13*7),3),\"\"))","v":"2024-09-16"},{"$f":"TEXT(D13,\"aaa\")","v":"月"},9,3,"変",{"$f":"IF(E13=\"日\",LOOKUP(1,0/(D13+ROW($1:$7)-1=D13:D23),D13:D23)+1,IF(D13+2=D14,D13+1,\"\"))","v":""},"9月第3月曜"]
[null,"2024-09-23","秋分の日",{"$f":"IF(H14=\"固\",DATE($A$2,F14,G14),IF(H14=\"変\",DATE($A$2,F14,G14*7)-WEEKDAY(DATE($A$2,F14,G14*7),3),\"\"))","v":"2024-09-22"},{"$f":"TEXT(D14,\"aaa\")","v":"日"},9,{"$f":"+INT(23.2488+0.242194*($A$2-1980)-INT(($A$2-1980)/4))","v":22},"固",{"$f":"IF(E14=\"日\",LOOKUP(1,0/(D14+ROW($1:$7)-1=D14:D24),D14:D24)+1,IF(D14+2=D15,D14+1,\"\"))","v":"2024-09-23"},"2099年までの対応"]
[null,"2024-10-14","体育の日",{"$f":"IF(H15=\"固\",DATE($A$2,F15,G15),IF(H15=\"変\",DATE($A$2,F15,G15*7)-WEEKDAY(DATE($A$2,F15,G15*7),3),\"\"))","v":"2024-10-14"},{"$f":"TEXT(D15,\"aaa\")","v":"月"},10,2,"変",{"$f":"IF(E15=\"日\",LOOKUP(1,0/(D15+ROW($1:$7)-1=D15:D25),D15:D25)+1,IF(D15+2=D16,D15+1,\"\"))","v":""},"10月第2月曜"]
[null,"2024-11-04","文化の日","2024-11-03","日",11,3,"固",{"$f":"IF(E16=\"日\",LOOKUP(1,0/(D16+ROW($1:$7)-1=D16:D26),D16:D26)+1,IF(D16+2=D22,D16+1,\"\"))","v":"2024-11-04"}]
[null,"2024-11-23","勤労感謝の日","2024-11-23","土",11,23,"固",{"$f":"IF(E17=\"日\",LOOKUP(1,0/(D17+ROW($1:$7)-1=D17:D22),D17:D22)+1,IF(D17+2=D18,D17+1,\"\"))","v":""}]
[{"$f":"A2+1","v":2025},"2025-01-01","元日",{"$f":"IF(H18=\"固\",DATE($A$18,F18,G18),IF(H18=\"変\",DATE($A$18,F18,G18*7)-WEEKDAY(DATE($A$18,F18,G18*7),3),\"\"))","v":"2025-01-01"},{"$f":"TEXT(D18,\"aaa\")","v":"水"},1,1,"固",{"$f":"IF(E18=\"日\",LOOKUP(1,0/(D18+ROW($1:$7)-1=D18:D24),D18:D24)+1,IF(D18+2=D19,D18+1,\"\"))","v":""}]
[null,"2025-01-13","成人の日",{"$f":"IF(H19=\"固\",DATE($A$18,F19,G19),IF(H19=\"変\",DATE($A$18,F19,G19*7)-WEEKDAY(DATE($A$18,F19,G19*7),3),\"\"))","v":"2025-01-13"},{"$f":"TEXT(D19,\"aaa\")","v":"月"},1,2,"変",{"$f":"IF(E19=\"日\",LOOKUP(1,0/(D19+ROW($1:$7)-1=D19:D25),D19:D25)+1,IF(D19+2=D20,D19+1,\"\"))","v":""},"1月第2月曜"]
[null,"2025-02-11","建国記念日","2025-02-11",{"$f":"TEXT(D20,\"aaa\")","v":"火"},2,11,"固",{"$f":"IF(E20=\"日\",LOOKUP(1,0/(D20+ROW($1:$7)-1=D20:D26),D20:D26)+1,IF(D20+2=D22,D20+1,\"\"))","v":""}]
[null,"2025-02-24","天皇誕生日","2025-02-23","日",2,23,"固",{"$f":"IF(E21=\"日\",LOOKUP(1,0/(D21+ROW($1:$7)-1=D21:D27),D21:D27)+1,IF(D21+2=D23,D21+1,\"\"))","v":"2025-02-24"}]
[null,"2025-03-20","春分の日","2025-03-20",{"$f":"TEXT(D22,\"aaa\")","v":"木"},3,20,"固",{"$f":"IF(E22=\"日\",LOOKUP(1,0/(D22+ROW($1:$7)-1=D22:D27),D22:D27)+1,IF(D22+2=D23,D22+1,\"\"))","v":""},"2099年までの対応"]